Body Name,Body,Service Division Label,Service Division Code,Organisational Unit,Expenditure Category,Expenditure Code,CIPFA detailed expediture type,CIPFA detailed expediture code,Narrative,Date,Transaction number,Net Amount,Capital and Revenue,Supplier Name,Supplier ID
Chorley Borough Council,http://statistics.data.gov.uk/id/local-authority/30UE,Democratic Represent and  Mgnt,1007,Streetscene & Leisure Contracts,External Contractor - Trust or Charity,50008,Private Contractors,5042,Active Nation Monthly Management Fee For the Period April 2015 - March 2016. Monthly Fee to be invoiced each month.,05/02/2016,109694,"31,211.54",Revenue,Active Nation UK Ltd,17144
Chorley Borough Council,http://statistics.data.gov.uk/id/local-authority/30UE,Central Support Services,1009,Health Environment & Neighbourhoods,Sports Development Initiatives,40186,Miscellaneous Expenses,5034,Delivery of Dance sessions at Clayton le Woods School in January,24/02/2016,110050,480.00,Revenue,Adele Bannister,19442
Chorley Borough Council,http://statistics.data.gov.uk/id/local-authority/30UE,Democratic Represent and  Mgnt,1007,Governance,Grants To Other Organisations,40127,Grants and Subscriptions,5031,,24/02/2016,110123,250.00,Revenue,Adlington Luncheon Club,59141
Chorley Borough Council,http://statistics.data.gov.uk/id/local-authority/30UE,Unapportionable Central OHeads,1009,Governance,Planned Maintenance,20006,Repairs Maintenance & Alts,5005,PPM blanket order until September 2015.,24/02/2016,109900,"1,579.00",Revenue,ADT Fire & Security,16645
Chorley Borough Council,http://statistics.data.gov.uk/id/local-authority/30UE,Unapportionable Central OHeads,1009,"Customer, ICT & Transactional",Bank Charges,40151,Miscellaneous Expenses,5034,,10/02/2016,109718,"1,560.25",Revenue,Allpay Net Ltd,17242
Chorley Borough Council,http://statistics.data.gov.uk/id/local-authority/30UE,Service Management & Support,1009,Streetscene & Leisure Contracts,Grounds Maintenance Contractor,20043,Grounds Maintenance Costs,5013,"Tree work as outlined during site visit to reed bed area in Astley Park, Chorley 7 days work. Removal of trees chipping brash",03/02/2016,109478,"3,600.00",Revenue,AP Broom Landscapes,67257
Chorley Borough Council,http://statistics.data.gov.uk/id/local-authority/30UE,Service Management & Support,1009,Streetscene & Leisure Contracts,Supplies-Grounds Maintenance,40025,"Equipment, Furniture & Materia",5023,Supply 2 x operatives to assist in out of hours on 26/12/2015 with filling and issuing of sand bags as requested,18/02/2016,109483,400.00,Revenue,AP Broom Landscapes,67257
Chorley Borough Council,http://statistics.data.gov.uk/id/local-authority/30UE,Service Management & Support,1009,Streetscene & Leisure Contracts,External Contractor,40198,Miscellaneous Expenses,5034,"Carryout strimming works to grass banking`s as per your quote Central Avenue banking`s Astley Park pond banking",18/02/2016,109484,935.00,Revenue,AP Broom Landscapes,67257
Chorley Borough Council,http://statistics.data.gov.uk/id/local-authority/30UE,Service Management & Support,1009,Streetscene & Leisure Contracts,Grounds Maintenance Contractor,20043,Grounds Maintenance Costs,5013,Tree management to Astley Park,03/02/2016,109640,"1,900.00",Revenue,AP Broom Landscapes,67257
Chorley Borough Council,http://statistics.data.gov.uk/id/local-authority/30UE,Service Management & Support,1009,Streetscene & Leisure Contracts,External Contractor,40198,Miscellaneous Expenses,5034,Tree management and tidy up of steep bankings adj to Park Road in Astley Park,24/02/2016,110075,300.00,Revenue,AP Broom Landscapes,67257
Chorley Borough Council,http://statistics.data.gov.uk/id/local-authority/30UE,Unapportionable Central OHeads,1009,Shared Service Arrangement,Car Leasing Payment,14100,Direct Employee Expenses,5001,Car Leasing Payment NAME REDACTED,24/02/2016,110217,"2,937.24",Revenue,Arnold Clark Finance Ltd,20685
Chorley Borough Council,http://statistics.data.gov.uk/id/local-authority/30UE,Unapportionable Central OHeads,1009,Shared Service Arrangement,Car Leasing Payment,14100,Direct Employee Expenses,5001,Car Leasing Payment,24/02/2016,110217,248.88,Revenue,Arnold Clark Finance Ltd,20685
Chorley Borough Council,http://statistics.data.gov.uk/id/local-authority/30UE,Unapportionable Central OHeads,1009,Policy & Performance,Promotional Expenses,40159,Miscellaneous Expenses,5034,Four week promotion of Christmas attractions and events in Chorley by Rock FM,24/02/2016,110220,"2,160.14",Revenue,Bauer Active Ltd,50574
Chorley Borough Council,http://statistics.data.gov.uk/id/local-authority/30UE,Corporate Management,1008,Policy & Performance,Publicity - Advertising,40157,Miscellaneous Expenses,5034,Market Walk Christmas on-air awareness campaign with Rock FM,24/02/2016,110222,735.41,Revenue,Bauer Active Ltd,50574
Chorley Borough Council,http://statistics.data.gov.uk/id/local-authority/30UE,Corporate Management,1008,Policy & Performance,Publicity - Advertising,40157,Miscellaneous Expenses,5034,Market Walk Christmas on-air awareness campaign with Rock FM,24/02/2016,110223,"1,957.11",Revenue,Bauer Active Ltd,50574
Chorley Borough Council,http://statistics.data.gov.uk/id/local-authority/30UE,Unapportionable Central OHeads,1009,"Customer, ICT & Transactional",Consultants` Fees,40077,Services,5027,"Support as agreed with Customer, Transactional and ICT services",10/02/2016,109918,"1,800.00",Revenue,REDACTED PERSONAL DATA,22238
Chorley Borough Council,http://statistics.data.gov.uk/id/local-authority/30UE,Central Support Services,1009,"Customer, ICT & Transactional",Computer Software-Purchase,40100,Communication and Computing,5028,Development work in line with the user stories document. Services to be paid 50% in Advance and 50% completion of work.,19/02/2016,110012,"7,500.00",Revenue,BookingBug Ltd,72654
Chorley Borough Council,http://statistics.data.gov.uk/id/local-authority/30UE,Central Support Services,1009,"Customer, ICT & Transactional",Telephones - Calls,40084,Communication and Computing,5028,usage charges,10/02/2016,109614,338.18,Revenue,British Telecommunications Plc,17131
Chorley Borough Council,http://statistics.data.gov.uk/id/local-authority/30UE,Central Support Services,1009,"Customer, ICT & Transactional",Telephones - Other,40085,Communication and Computing,5028,one off,10/02/2016,109614,42.37,Revenue,British Telecommunications Plc,17131
Chorley Borough Council,http://statistics.data.gov.uk/id/local-authority/30UE,Central Support Services,1009,"Customer, ICT & Transactional",Telephones - Rentals,40083,Communication and Computing,5028,recurring,10/02/2016,109614,"2,827.19",Revenue,British Telecommunications Plc,17131
Chorley Borough Council,http://statistics.data.gov.uk/id/local-authority/30UE,Service Management & Support,1009,Streetscene & Leisure Contracts,Supplies-Grounds Maintenance,40025,"Equipment, Furniture & Materia",5023,20mm to dust sandstone per tonne delivered to Bengal street,10/02/2016,109887,360.00,Revenue,Burt Wesley & Sons ltd,67887
Chorley Borough Council,http://statistics.data.gov.uk/id/local-authority/30UE,Democratic Represent and  Mgnt,1007,Streetscene & Leisure Contracts,Fixtures & Fittings - Repair/Mtnce,20028,Fixtures and Fittings,5010,Carryout jetting works at Brinscal swimming pool as requested,03/02/2016,109654,105.00,Revenue,C J Lyon,16579
Chorley Borough Council,http://statistics.data.gov.uk/id/local-authority/30UE,Service Management & Support,1009,Streetscene & Leisure Contracts,External Contractor,40198,Miscellaneous Expenses,5034,Carryout CCTV survey at Higher Meadow Clayton Le Woods as requested,03/02/2016,109654,105.00,Revenue,C J Lyon,16579
Chorley Borough Council,http://statistics.data.gov.uk/id/local-authority/30UE,Service Management & Support,1009,Streetscene & Leisure Contracts,External Contractor,40198,Miscellaneous Expenses,5034,Callout to clear floods at Clayton Brook as requested,03/02/2016,109654,105.00,Revenue,C J Lyon,16579
Chorley Borough Council,http://statistics.data.gov.uk/id/local-authority/30UE,Unapportionable Central OHeads,1009,"Customer, ICT & Transactional",Emergency Call Out System,40096,Communication and Computing,5028,Out of hours call charges January 2016,12/02/2016,109952,469.60,Revenue,CallCare Ltd,20257
Chorley Borough Council,http://statistics.data.gov.uk/id/local-authority/30UE,Unapportionable Central OHeads,1009,"Customer, ICT & Transactional",Emergency Call Out System,40096,Communication and Computing,5028,Out of hours standing charge March 2016 (Including Bank Holidays),12/02/2016,109952,220.00,Revenue,CallCare Ltd,20257
Chorley Borough Council,http://statistics.data.gov.uk/id/local-authority/30UE,Unapportionable Central OHeads,1009,"Customer, ICT & Transactional",Photocopier Charges,40047,"Printing, Stationery & General",5026,,10/02/2016,109595,"1,281.21",Revenue,Canon (UK) Ltd,17492
Chorley Borough Council,http://statistics.data.gov.uk/id/local-authority/30UE,Unapportionable Central OHeads,1009,"Customer, ICT & Transactional",Training Course Fees,17010,Indirect Employee Expenses,5002,"2 delegates to attend the Revenues and Benefits EOY Seminar at the Marriott, Preston Monday 18 Jan 16.",18/02/2016,110015,655.00,Revenue,Capita Business Services Ltd,17151
Chorley Borough Council,http://statistics.data.gov.uk/id/local-authority/30UE,Central Support Services,1009,Governance,Miscellaneous Expenses,40200,Miscellaneous Expenses,5034,Chorley Grand Prix Event Management Fee (Part 1 of 2),05/02/2016,109708,"1,250.00",Revenue,Carl J Lawrenson,69770
Chorley Borough Council,http://statistics.data.gov.uk/id/local-authority/30UE,Central Support Services,1009,Health Environment & Neighbourhoods,Other Contributions,40145,Grants and Subscriptions,5031,Funding support for activity and programme 2015/16 contribution as agreed.,05/02/2016,108628,"2,000.00",Revenue,Chorley & Dist Sports Forum,17713
Chorley Borough Council,http://statistics.data.gov.uk/id/local-authority/30UE,Corporate Management,1008,Health Environment & Neighbourhoods,Taxi Testing & Vehicle Safety Report,40234,Services,5027,taxi test,03/02/2016,109717,119.70,Revenue,Chorley Autocare Ltd,17110
Chorley Borough Council,http://statistics.data.gov.uk/id/local-authority/30UE,Corporate Management,1008,Health Environment & Neighbourhoods,Taxi Testing & Vehicle Safety Report,40234,Services,5027,MOT,03/02/2016,109717,767.90,Revenue,Chorley Autocare Ltd,17110
Chorley Borough Council,http://statistics.data.gov.uk/id/local-authority/30UE,Service Management & Support,1009,Streetscene & Leisure Contracts,Vehicle Maintenance,30045,Direct Transport Costs,5016,Supply and fit new tyre and carryout major tyre repair on PO14BFX,10/02/2016,109824,500.00,Revenue,Chorley Tyres,53719
Chorley Borough Council,http://statistics.data.gov.uk/id/local-authority/30UE,Unapportionable Central OHeads,1009,Governance,General Repairs - Reactive,20004,Repairs Maintenance & Alts,5005,Reactive blanket order until September 2015.,24/02/2016,109621,450.00,Revenue,Chubb Electronic Sec Sys Ltd,16228
Chorley Borough Council,http://statistics.data.gov.uk/id/local-authority/30UE,Unapportionable Central OHeads,1009,Governance,Planned Maintenance,20006,Repairs Maintenance & Alts,5005,Blanket order for PPM works until end of March 2016.,24/02/2016,109622,375.00,Revenue,Chubb Electronic Sec Sys Ltd,16228
Chorley Borough Council,http://statistics.data.gov.uk/id/local-authority/30UE,Unapportionable Central OHeads,1009,Governance,Planned Maintenance,20006,Repairs Maintenance & Alts,5005,Blanket order for PPM works until end of March 2016.,24/02/2016,109759,404.94,Revenue,Chubb Electronic Sec Sys Ltd,16228
Chorley Borough Council,http://statistics.data.gov.uk/id/local-authority/30UE,Unapportionable Central OHeads,1009,Shared Service Arrangement,Publications,40054,"Printing, Stationery & General",5026,Creating Services in a Collaborative Environment (Online Publication),03/02/2016,109698,275.00,Revenue,CIPFA,16201
Chorley Borough Council,http://statistics.data.gov.uk/id/local-authority/30UE,Unapportionable Central OHeads,1009,Shared Service Arrangement,Publications,40054,"Printing, Stationery & General",5026,CIPFA 2015/16 Cashflow Statement Toolkit for Practitioners in Local Authorities (renewal),24/02/2016,110183,500.00,Revenue,CIPFA,16201
Chorley Borough Council,http://statistics.data.gov.uk/id/local-authority/30UE,Economic Development,1096,Governance,Tools & Equipment - Purchase,40003,"Equipment, Furniture & Materia",5023,"Parts for Gazebos 3 x outer legs = 165 3 x inner legs = 75 6 x pair oval cross section arms = 180",19/02/2016,110007,420.00,Revenue,City B Group Ltd,47300
Chorley Borough Council,http://statistics.data.gov.uk/id/local-authority/30UE,Unapportionable Central OHeads,1009,Shared Service Arrangement,IT Software - Annual Licences,40101,Communication and Computing,5028,Civica Financials Licence Support and Maintenance for the period 1 April 2016 to 31 March 2017,24/02/2016,110068,"37,781.67",Revenue,Civica UK Limited,17463
Chorley Borough Council,http://statistics.data.gov.uk/id/local-authority/30UE,Unapportionable Central OHeads,1009,Shared Service Arrangement,IT Software - Annual Licences,40101,Communication and Computing,5028,Civica Financials - Web/Budget modules Licence Support and Maintenance for the period 1 April 2016 to 31 March 2017,24/02/2016,110069,"5,284.73",Revenue,Civica UK Limited,17463
Chorley Borough Council,http://statistics.data.gov.uk/id/local-authority/30UE,Democratic Represent and  Mgnt,1007,Streetscene & Leisure Contracts,Grounds Maintenance Contractor,20043,Grounds Maintenance Costs,5013,Habitat management work at Withnell Nature Reserve as per quotation JE5541 16,03/02/2016,109722,"1,842.50",Revenue,Conservation Contracts North West,20520
Chorley Borough Council,http://statistics.data.gov.uk/id/local-authority/30UE,Unapportionable Central OHeads,1009,Governance,General Repairs - Reactive,20004,Repairs Maintenance & Alts,5005,Power to Xmas stalls (two visits).,05/02/2016,109467,439.08,Revenue,Corlett Electrical Eng Co Ltd,16271
Chorley Borough Council,http://statistics.data.gov.uk/id/local-authority/30UE,Unapportionable Central OHeads,1009,Governance,General Repairs - Reactive,20004,Repairs Maintenance & Alts,5005,Power to Xmas stalls (two visits).,05/02/2016,109468,788.72,Revenue,Corlett Electrical Eng Co Ltd,16271
Chorley Borough Council,http://statistics.data.gov.uk/id/local-authority/30UE,Unapportionable Central OHeads,1009,Governance,General Repairs - Reactive,20004,Repairs Maintenance & Alts,5005,Blanket order for REACTIVE works until end of March 2016.,18/02/2016,109925,999.97,Revenue,Corlett Electrical Eng Co Ltd,16271
Chorley Borough Council,http://statistics.data.gov.uk/id/local-authority/30UE,Unapportionable Central OHeads,1009,Governance,General Repairs - Reactive,20004,Repairs Maintenance & Alts,5005,Blanket order for REACTIVE works until end of March 2016.,24/02/2016,110020,349.69,Revenue,Corlett Electrical Eng Co Ltd,16271
Chorley Borough Council,http://statistics.data.gov.uk/id/local-authority/30UE,Unapportionable Central OHeads,1009,Governance,General Repairs - Reactive,20004,Repairs Maintenance & Alts,5005,Blanket order for REACTIVE works until end of March 2016.,24/02/2016,110022,389.45,Revenue,Corlett Electrical Eng Co Ltd,16271
Chorley Borough Council,http://statistics.data.gov.uk/id/local-authority/30UE,Unapportionable Central OHeads,1009,Governance,General Repairs - Reactive,20004,Repairs Maintenance & Alts,5005,Blanket order for REACTIVE works until end of March 2016.,24/02/2016,110025,269.98,Revenue,Corlett Electrical Eng Co Ltd,16271
Chorley Borough Council,http://statistics.data.gov.uk/id/local-authority/30UE,Unapportionable Central OHeads,1009,Governance,General Repairs - Reactive,20004,Repairs Maintenance & Alts,5005,Blanket order for REACTIVE works until end of March 2016.,24/02/2016,110029,293.43,Revenue,Corlett Electrical Eng Co Ltd,16271
Chorley Borough Council,http://statistics.data.gov.uk/id/local-authority/30UE,Service Management & Support,1009,Streetscene & Leisure Contracts,Grounds Maintenance Contractor,20043,Grounds Maintenance Costs,5013,Tree work completed. Rear of ADDRESS REDACTED,03/02/2016,109581,"2,160.00",Revenue,Cornthwaite Tree Care,21250
Chorley Borough Council,http://statistics.data.gov.uk/id/local-authority/30UE,Unapportionable Central OHeads,1009,Governance,General Repairs - Reactive,20004,Repairs Maintenance & Alts,5005,Reactive blanket for 2016 in relation to ADDRESS REDCATED,24/02/2016,110070,356.88,Revenue,Corona Energy Retail 2 Ltd,67249
Chorley Borough Council,http://statistics.data.gov.uk/id/local-authority/30UE,Democratic Represent and  Mgnt,1007,Streetscene & Leisure Contracts,Supplies-Grounds Maintenance,40025,"Equipment, Furniture & Materia",5023,Money towards sheds NAMES REDACTED Kem Mill Lane Allotments to reimburse flood damage.,24/02/2016,110186,637.50,Revenue,Cuerden Valley Park Trust,20574
Chorley Borough Council,http://statistics.data.gov.uk/id/local-authority/30UE,Capital,Capital,Streetscene & Leisure Contracts,Main Contractor,3007,Capital Expenditure,Capital,Hedge laying at The Willows in accordance with emailed quote dated 7th December 2015,10/02/2016,109888,700.00,Capital,NAME REDACTED,69059
Chorley Borough Council,http://statistics.data.gov.uk/id/local-authority/30UE,Central Support Services,1009,Health Environment & Neighbourhoods,Training Course Fees,17010,Indirect Employee Expenses,5002,Delivery of First Aid Training on 2nd and 9th December,03/02/2016,109751,700.00,Revenue,DGF First Aid Training,72087
Chorley Borough Council,http://statistics.data.gov.uk/id/local-authority/30UE,Service Management & Support,1009,Streetscene & Leisure Contracts,Tools & Equipment - Purchase,40003,"Equipment, Furniture & Materia",5023,Supply Husqvarna LB53S Mulchin mower as per quote No 168734,18/02/2016,110013,"4,360.00",Revenue,Dick Leigh,17138
Chorley Borough Council,http://statistics.data.gov.uk/id/local-authority/30UE,Service Management & Support,1009,Streetscene & Leisure Contracts,Tools & Equipment - Purchase,40003,"Equipment, Furniture & Materia",5023,Supply Stihl BR600 as per quote No 168734,18/02/2016,110013,"1,304.00",Revenue,Dick Leigh,17138
Chorley Borough Council,http://statistics.data.gov.uk/id/local-authority/30UE,Service Management & Support,1009,Streetscene & Leisure Contracts,Tools & Equipment - Purchase,40003,"Equipment, Furniture & Materia",5023,Supply Husqvarna 570BTS as per quote No 168734,18/02/2016,110013,395.00,Revenue,Dick Leigh,17138
Chorley Borough Council,http://statistics.data.gov.uk/id/local-authority/30UE,Service Management & Support,1009,Streetscene & Leisure Contracts,Tools & Equipment - Purchase,40003,"Equipment, Furniture & Materia",5023,Supply Stihl BG86 C-E Blowers,18/02/2016,110013,346.00,Revenue,Dick Leigh,17138
Chorley Borough Council,http://statistics.data.gov.uk/id/local-authority/30UE,Service Management & Support,1009,Streetscene & Leisure Contracts,Tools & Equipment - Purchase,40003,"Equipment, Furniture & Materia",5023,Supply Husqvarna 525BX Blower,18/02/2016,110013,396.00,Revenue,Dick Leigh,17138
Chorley Borough Council,http://statistics.data.gov.uk/id/local-authority/30UE,Service Management & Support,1009,Streetscene & Leisure Contracts,Tools & Equipment - Maintenance,40005,"Equipment, Furniture & Materia",5023,Supply items as on Document number 018367,18/02/2016,110014,76.36,Revenue,Dick Leigh,17138
Chorley Borough Council,http://statistics.data.gov.uk/id/local-authority/30UE,Service Management & Support,1009,Streetscene & Leisure Contracts,Tools & Equipment - Maintenance,40005,"Equipment, Furniture & Materia",5023,Supply items as on document number 013863,18/02/2016,110014,162.98,Revenue,Dick Leigh,17138
Chorley Borough Council,http://statistics.data.gov.uk/id/local-authority/30UE,Service Management & Support,1009,Streetscene & Leisure Contracts,Tools & Equipment - Maintenance,40005,"Equipment, Furniture & Materia",5023,Supply items as on document number 018364,18/02/2016,110014,18.00,Revenue,Dick Leigh,17138
Chorley Borough Council,http://statistics.data.gov.uk/id/local-authority/30UE,Service Management & Support,1009,Streetscene & Leisure Contracts,Tools & Equipment - Maintenance,40005,"Equipment, Furniture & Materia",5023,Supply items as on invoice number 018365,18/02/2016,110014,64.03,Revenue,Dick Leigh,17138
Chorley Borough Council,http://statistics.data.gov.uk/id/local-authority/30UE,Service Management & Support,1009,Streetscene & Leisure Contracts,Tools & Equipment - Maintenance,40005,"Equipment, Furniture & Materia",5023,Supply items as on document number 018366,18/02/2016,110014,57.06,Revenue,Dick Leigh,17138
Chorley Borough Council,http://statistics.data.gov.uk/id/local-authority/30UE,Service Management & Support,1009,Streetscene & Leisure Contracts,Supplies-Grounds Maintenance,40025,"Equipment, Furniture & Materia",5023,1 - Willow Heart,10/02/2016,109697,450.00,Revenue,Eco-Arts,21984
Chorley Borough Council,http://statistics.data.gov.uk/id/local-authority/30UE,Central Support Services,1009,"Customer, ICT & Transactional",Mobile Phones,40086,Communication and Computing,5028,16440033,19/02/2016,110048,574.80,Revenue,EE - Orange,16486
Chorley Borough Council,http://statistics.data.gov.uk/id/local-authority/30UE,Central Support Services,1009,"Customer, ICT & Transactional",Mobile Phones,40086,Communication and Computing,5028,,24/02/2016,110140,534.53,Revenue,EE - Orange,16486
Chorley Borough Council,http://statistics.data.gov.uk/id/local-authority/30UE,Business Support,1095,Economic Development,Miscellaneous Expenses,40200,Miscellaneous Expenses,5034,Provide critical friend advice and support relating to ESIF application,10/02/2016,109760,"1,400.00",Revenue,EKOSGEN,71520
Chorley Borough Council,http://statistics.data.gov.uk/id/local-authority/30UE,Central Support Services,1009,Governance,Tools & Equipment - Maintenance,40005,"Equipment, Furniture & Materia",5023,to supply the installation  of an electricity supply to the relocated CCTV pole at Clayton Brook Village Hall,03/02/2016,109567,"1,084.98",Revenue,Electricity North West Ltd,17118
Chorley Borough Council,http://statistics.data.gov.uk/id/local-authority/30UE,Business Support,1095,Governance,Miscellaneous Expenses,40200,Miscellaneous Expenses,5034,Footfall Annual DFM covering 01/07/2015 - 30/06/2016 Prop Ref: APB:837,03/02/2016,109649,"3,000.00",Revenue,Experian Footfall,74222
Chorley Borough Council,http://statistics.data.gov.uk/id/local-authority/30UE,Unapportionable Central OHeads,1009,"Customer, ICT & Transactional",Computer Software-Maintenance,40107,Communication and Computing,5028,Revenues and Benefits Experian Bank Wizard Licence Customer ref D1263/552_0 Chorley Borough Council.,26/02/2016,110080,"3,656.00",Revenue,Experian Ltd,16610
Chorley Borough Council,http://statistics.data.gov.uk/id/local-authority/30UE,Service Management & Support,1009,Streetscene & Leisure Contracts,Hire Of Transport,30028,Contrct Hire & Operating Lease,5018,Hire of Case tractor and McConnell flail at price quoted via the chest for 12 month period. through to 31/03/2015,03/02/2016,109091,"1,565.29",Revenue,F R Sharrock Ltd,18091
Chorley Borough Council,http://statistics.data.gov.uk/id/local-authority/30UE,Service Management & Support,1009,Streetscene & Leisure Contracts,Tools & Equipment - Maintenance,40005,"Equipment, Furniture & Materia",5023,Supply parts as on Pro-Forma invoice No 110312 ,24/02/2016,110170,"1,221.69",Revenue,F R Sharrock Ltd,18091
Chorley Borough Council,http://statistics.data.gov.uk/id/local-authority/30UE,Corporate Management,1008,Streetscene & Leisure Contracts,Vehicle Maintenance,30045,Direct Transport Costs,5016,Carryout alterations to caged side doors on Neighbourhood officers vehicles as requested 3x vehicles,24/02/2016,110143,"1,988.50",Revenue,Fleetservice limited,69455
Chorley Borough Council,http://statistics.data.gov.uk/id/local-authority/30UE,Unapportionable Central OHeads,1009,HR & Org. Development,Professional Fees,40063,Services,5027,Advice regarding investigation,12/02/2016,109968,728.00,Revenue,Forbes Solicitors,17527
Chorley Borough Council,http://statistics.data.gov.uk/id/local-authority/30UE,Democratic Represent and  Mgnt,1007,Governance,Supplies-Grounds Maintenance,40025,"Equipment, Furniture & Materia",5023,Additional two visit carried out at ADDRESS REDACTED (flood damage inspection).,24/02/2016,110092,504.45,Revenue,Frederick G Markland Associates,68088
Chorley Borough Council,http://statistics.data.gov.uk/id/local-authority/30UE,Service Management & Support,1009,Streetscene & Leisure Contracts,Vehicle Maintenance,30045,Direct Transport Costs,5016,"FTA Inspections completed:2 Axled Vehicle Roadworthiness x 2Driver Walk Round Check Audit Job Numbers = 27555815",03/02/2016,109635,474.16,Revenue,Freight Transport Assoc Ltd,16333
Chorley Borough Council,http://statistics.data.gov.uk/id/local-authority/30UE,Service Management & Support,1009,Streetscene & Leisure Contracts,Freight Transport Assoc Fees,40150,Grants and Subscriptions,5031,Carryout 6 weekly safety inspection for Olicence compliance on DK07LDE,05/02/2016,109769,117.63,Revenue,Freight Transport Assoc Ltd,16333
Chorley Borough Council,http://statistics.data.gov.uk/id/local-authority/30UE,Service Management & Support,1009,Streetscene & Leisure Contracts,Freight Transport Assoc Fees,40150,Grants and Subscriptions,5031,Carryout 6 weekly safety inspection on DX55CVG for Olicence compliance,05/02/2016,109769,117.63,Revenue,Freight Transport Assoc Ltd,16333
Chorley Borough Council,http://statistics.data.gov.uk/id/local-authority/30UE,Service Management & Support,1009,Streetscene & Leisure Contracts,Freight Transport Assoc Fees,40150,Grants and Subscriptions,5031,Carryout 6 weekly safety inspection on DK05CXG for Olicence compliance,05/02/2016,109769,117.63,Revenue,Freight Transport Assoc Ltd,16333
Chorley Borough Council,http://statistics.data.gov.uk/id/local-authority/30UE,Service Management & Support,1009,Streetscene & Leisure Contracts,Freight Transport Assoc Fees,40150,Grants and Subscriptions,5031,Carryout 6 weekly safety inspection on PN02HRL for Olicence compliance,05/02/2016,109769,117.63,Revenue,Freight Transport Assoc Ltd,16333
Chorley Borough Council,http://statistics.data.gov.uk/id/local-authority/30UE,Service Management & Support,1009,Streetscene & Leisure Contracts,Freight Transport Assoc Fees,40150,Grants and Subscriptions,5031,Carryout 6 weekly safety inspection on RV14DVB for Olicence compliance,05/02/2016,109769,117.63,Revenue,Freight Transport Assoc Ltd,16333
Chorley Borough Council,http://statistics.data.gov.uk/id/local-authority/30UE,Service Management & Support,1009,Streetscene & Leisure Contracts,Freight Transport Assoc Fees,40150,Grants and Subscriptions,5031,Carryout 6 weekly safety inspection on DK56JWL for Olicence compliance,05/02/2016,109769,117.63,Revenue,Freight Transport Assoc Ltd,16333
Chorley Borough Council,http://statistics.data.gov.uk/id/local-authority/30UE,Democratic Represent and  Mgnt,1007,Streetscene & Leisure Contracts,Burglar Alarms & Security Systems,20075,Fixtures and Fittings,5010,contract for 2016,03/02/2016,109520,727.37,Revenue,G4S Cash Solutions UK Ltd,22099
Chorley Borough Council,http://statistics.data.gov.uk/id/local-authority/30UE,Democratic Represent and  Mgnt,1007,Streetscene & Leisure Contracts,General Repairs - Reactive,20004,Repairs Maintenance & Alts,5005,"Supply and installation of pump as quotation 32519 of 1 Oct 2015 at Brinscall pool, Chorley",24/02/2016,107720,795.00,Revenue,Gaffey Technical Services Ltd,18844
Chorley Borough Council,http://statistics.data.gov.uk/id/local-authority/30UE,Business Support,1095,Governance,Gas,20014,Energy Costs,5006,Energy Costs,05/02/2016,109513,"1,046.29",Revenue,Gazprom Energy,56502
Chorley Borough Council,http://statistics.data.gov.uk/id/local-authority/30UE,Business Support,1095,Governance,Electricity,20013,Energy Costs,5006,Energy Costs,05/02/2016,109514,292.65,Revenue,Gazprom Energy,56502
Chorley Borough Council,http://statistics.data.gov.uk/id/local-authority/30UE,Business Support,1095,Economic Development,Miscellaneous Expenses,40200,Miscellaneous Expenses,5034,,24/02/2016,109960,250.00,Revenue,NAME REDACTED,74353
Chorley Borough Council,http://statistics.data.gov.uk/id/local-authority/30UE,Central Support Services,1009,Health Environment & Neighbourhoods,Impounded Dogs Costs,40207,Miscellaneous Expenses,5034,Kennelling fees for 2015/16,12/02/2016,109955,507.50,Revenue,Glencoe Boarding Kennels,16734
Chorley Borough Council,http://statistics.data.gov.uk/id/local-authority/30UE,Service Management & Support,1009,Streetscene & Leisure Contracts,External Contractor,40198,Miscellaneous Expenses,5034,Arboricultural Survey at Westway Playing Fields,10/02/2016,109803,475.00,Revenue,Godwin�s Arboricultural Ltd,62966
Chorley Borough Council,http://statistics.data.gov.uk/id/local-authority/30UE,Central Support Services,1009,Health Environment & Neighbourhoods,Vandalism Repairs,20005,Repairs Maintenance & Alts,5005,Contract Renewal for Graffiti Removal 1 November 2015 - 31 October 2018,03/02/2016,109570,"1,250.00",Revenue,Graffiti Removal (North) Ltd,17320
Chorley Borough Council,http://statistics.data.gov.uk/id/local-authority/30UE,Central Support Services,1009,Health Environment & Neighbourhoods,Vandalism Repairs,20005,Repairs Maintenance & Alts,5005,Contract Renewal for Graffiti Removal 1 November 2015 - 31 October 2018,12/02/2016,109917,"1,250.00",Revenue,Graffiti Removal (North) Ltd,17320
Chorley Borough Council,http://statistics.data.gov.uk/id/local-authority/30UE,Unapportionable Central OHeads,1009,Shared Service Arrangement,Consultants` Fees,40077,Services,5027,For preparation and facilitation of the SFS Management Team planning workshop on 21st December 2015,03/02/2016,109592,962.50,Revenue,Greengage Consulting Ltd,17365
Chorley Borough Council,http://statistics.data.gov.uk/id/local-authority/30UE,Unapportionable Central OHeads,1009,Shared Service Arrangement,Consultants` Fees,40077,Services,5027,Expenses for the SFS Management Team planning workshop on 21st December 2015,03/02/2016,109592,59.40,Revenue,Greengage Consulting Ltd,17365
Chorley Borough Council,http://statistics.data.gov.uk/id/local-authority/30UE,Service Management & Support,1009,Streetscene & Leisure Contracts,Supplies-Grounds Maintenance,40025,"Equipment, Furniture & Materia",5023,"6m FG internal metal door heavy duty flag pole with hinged base, fixings and delivery.  I DO NOT require a ground collar. ",03/02/2016,109479,329.00,Revenue,Harrison External Display Systems,56395
Chorley Borough Council,http://statistics.data.gov.uk/id/local-authority/30UE,Unapportionable Central OHeads,1009,Governance,Training Course Fees,17010,Indirect Employee Expenses,5002,Staff Training in Regulation of Investigatory Powers Act 2000,05/02/2016,109814,"1,649.92",Revenue,Hasan Associates Limited,55767
Chorley Borough Council,http://statistics.data.gov.uk/id/local-authority/30UE,Business Support,1095,Economic Development,Grants To Other Organisations,40127,Grants and Subscriptions,5031,,19/02/2016,110126,"1,214.00",Revenue,Havana Brasserie Ltd,72660
Chorley Borough Council,http://statistics.data.gov.uk/id/local-authority/30UE,Democratic Represent and  Mgnt,1007,Governance,Grants To Other Organisations,40127,Grants and Subscriptions,5031,community grant fund,03/02/2016,109690,250.00,Revenue,Help The Homeless (Chorley),16716
Chorley Borough Council,http://statistics.data.gov.uk/id/local-authority/30UE,Capital,Capital,Governance,Stamp Duty,3026,Capital Expenditure,Capital,Stamp duty land tax,29/02/2016,110293,"13,500.00",Capital,HM Revenue & Customs,56499
Chorley Borough Council,http://statistics.data.gov.uk/id/local-authority/30UE,Business Support,1095,Policy & Performance,Research & Feasibilities,40079,Services,5027,Market Walk Extension - Professional Fees: Engineering Services,03/02/2016,109556,"1,208.33",Revenue,Hulley and Kirkwood Consulting Engineers Ltd,69390
Chorley Borough Council,http://statistics.data.gov.uk/id/local-authority/30UE,Control Accounts,Control,Shared Service Arrangement,Manual Control Account,1,Balance Sheet,Balance,,18/02/2016,109632,"1,000.00",Revenue,Inland Revenue 065py00102078,17445
Chorley Borough Council,http://statistics.data.gov.uk/id/local-authority/30UE,Unapportionable Central OHeads,1009,HR & Org. Development,HR Approved Training Expenses,17001,Indirect Employee Expenses,5002,Course - Leading and Managing Change,03/02/2016,109655,"1,125.00",Revenue,Instep UK Ltd,65300
Chorley Borough Council,http://statistics.data.gov.uk/id/local-authority/30UE,Unapportionable Central OHeads,1009,HR & Org. Development,HR Approved Training Expenses,17001,Indirect Employee Expenses,5002,Course - Delegating & Using People`s Strengths,03/02/2016,109656,678.50,Revenue,Instep UK Ltd,65300
Chorley Borough Council,http://statistics.data.gov.uk/id/local-authority/30UE,Corporate Management,1008,Health Environment & Neighbourhoods,Training Course Fees,17010,Indirect Employee Expenses,5002,2 places on safeguarding course in Manchester,03/02/2016,109643,250.00,Revenue,Institute Of Licensing,16987
Chorley Borough Council,http://statistics.data.gov.uk/id/local-authority/30UE,Business Support,1095,Economic Development,Cleaning/Attendants' Services,20041,Cleaning and Domestic Supplies,5012,Daily Cleaning Services for Market Walk SC January 2016,10/02/2016,109671,"4,043.04",Revenue,Interserve,70619
Chorley Borough Council,http://statistics.data.gov.uk/id/local-authority/30UE,Business Support,1095,Economic Development,Refuse Collection,20037,Cleaning and Domestic Supplies,5012,To supply Waste Compactor services to MWSC HD260TR Serial No: 02601707021135 February 2016,10/02/2016,109672,270.00,Revenue,J&H Rentals Limited,70699
Chorley Borough Council,http://statistics.data.gov.uk/id/local-authority/30UE,Business Support,1095,Economic Development,Miscellaneous Expenses,40200,Miscellaneous Expenses,5034,,05/02/2016,109627,250.00,Revenue,NAME REDACTED,74120
Chorley Borough Council,http://statistics.data.gov.uk/id/local-authority/30UE,Corporate Management,1008,Streetscene & Leisure Contracts,General Repairs - Reactive,20004,Repairs Maintenance & Alts,5005,170 Saxon Buff flags. 600mm x 600mm x 35mm,12/02/2016,109972,643.20,Revenue,Jewsons Limited,17844
Chorley Borough Council,http://statistics.data.gov.uk/id/local-authority/30UE,Central Support Services,1009,Health Environment & Neighbourhoods,External Contractor,40198,Miscellaneous Expenses,5034,To provide author services for Chorley DHR - Event August 2015,24/02/2016,110151,"1,550.00",Revenue,John Doyle Projects,66412
Chorley Borough Council,http://statistics.data.gov.uk/id/local-authority/30UE,Development Control,1091,Planning,Statutory Notices,40160,Miscellaneous Expenses,5034,Planning Public Notices to appear in the Chorley Guardian April 2015 to March 2016,26/02/2016,109761,560.34,Revenue,Johnston Publishing Ltd,20072
Chorley Borough Council,http://statistics.data.gov.uk/id/local-authority/30UE,Democratic Represent and  Mgnt,1007,Streetscene & Leisure Contracts,Supplies-Grounds Maintenance,40025,"Equipment, Furniture & Materia",5023,"5000 mixed Crocus2000 Golden Harvest Daffodils",24/02/2016,110120,335.00,Revenue,Jparkers,67264
Chorley Borough Council,http://statistics.data.gov.uk/id/local-authority/30UE,Central Support Services,1009,Health Environment & Neighbourhoods,Pest Control,20039,Cleaning and Domestic Supplies,5012,Ficam W BOX OF 10 X 15 G  sachets PER BOX,26/02/2016,110041,321.06,Revenue,Killgerm Chemicals Ltd,16879
Chorley Borough Council,http://statistics.data.gov.uk/id/local-authority/30UE,Control Accounts,Control,Shared Service Arrangement,General Balances,100,Balance Sheet,Balance,,24/02/2016,110112,"1,166.85",Revenue,Labour Councillors Association,17577
Chorley Borough Council,http://statistics.data.gov.uk/id/local-authority/30UE,Control Accounts,Control,Shared Service Arrangement,General Balances,100,Balance Sheet,Balance,,24/02/2016,110113,"1,166.85",Revenue,Labour Councillors Association,17577
Chorley Borough Council,http://statistics.data.gov.uk/id/local-authority/30UE,Capital,Capital,Housing,Grants,3002,Capital Expenditure,Capital,ADDRESS REDACTED,26/02/2016,110153,"3,340.00",Capital,Lancashire County Council,17758
Chorley Borough Council,http://statistics.data.gov.uk/id/local-authority/30UE,Corporate Management,1008,Policy & Performance,Other Fees,40212,Miscellaneous Expenses,5034,Subsidy for the provision of a meals on wheels service in Chorley four weekly up to 24 January 2016,05/02/2016,109692,852.34,Revenue,Lancashire Fayre,62967
Chorley Borough Council,http://statistics.data.gov.uk/id/local-authority/30UE,Development Control,1091,Governance,Legal Fees,40171,Miscellaneous Expenses,5034,"Professional fees of Simon Pickles, advice relating to Prospect Homes on Southern Commercial",05/02/2016,109812,"1,800.00",Revenue,Landmark Chambers,56730
Chorley Borough Council,http://statistics.data.gov.uk/id/local-authority/30UE,Corporate Management,1008,Streetscene & Leisure Contracts,General Subscriptions,40146,Grants and Subscriptions,5031,LARAC membership fees 2016-2017,24/02/2016,110100,395.00,Revenue,Larac,16550
Chorley Borough Council,http://statistics.data.gov.uk/id/local-authority/30UE,Central Support Services,1009,"Customer, ICT & Transactional",Computer Software-Maintenance,40107,Communication and Computing,5028,Lightning Conductor 2013 Farm Software Assurance - renewal period 12 months from 1st April 2016 to 31st March 2017,24/02/2016,110141,524.90,Revenue,Lightning Tools Ltd,57633
Chorley Borough Council,http://statistics.data.gov.uk/id/local-authority/30UE,Business Support,1095,Economic Development,Grants To Other Organisations,40127,Grants and Subscriptions,5031,shop floor grant,03/02/2016,109689,"2,250.00",Revenue,Liz Whittall,74109
Chorley Borough Council,http://statistics.data.gov.uk/id/local-authority/30UE,Unapportionable Central OHeads,1009,Chief Executives Office,Stationery,40050,"Printing, Stationery & General",5026,A4 Pads,10/02/2016,109879,9.50,Revenue,Lyreco UK Ltd,17623
Chorley Borough Council,http://statistics.data.gov.uk/id/local-authority/30UE,Unapportionable Central OHeads,1009,Chief Executives Office,Stationery,40050,"Printing, Stationery & General",5026,Lyreco Plain Yellow Sticky Notes 125 X 75Mm - Pack Of 12 Pads,10/02/2016,109879,0.60,Revenue,Lyreco UK Ltd,17623
Chorley Borough Council,http://statistics.data.gov.uk/id/local-authority/30UE,Unapportionable Central OHeads,1009,Chief Executives Office,Stationery,40050,"Printing, Stationery & General",5026,Lyreco Budget Notebook A4 60 gsm ruled spiral - Pack of 10,10/02/2016,109879,6.00,Revenue,Lyreco UK Ltd,17623
Chorley Borough Council,http://statistics.data.gov.uk/id/local-authority/30UE,Unapportionable Central OHeads,1009,Chief Executives Office,Stationery,40050,"Printing, Stationery & General",5026,Shorthand notebooks..,10/02/2016,109879,6.00,Revenue,Lyreco UK Ltd,17623
Chorley Borough Council,http://statistics.data.gov.uk/id/local-authority/30UE,Unapportionable Central OHeads,1009,Chief Executives Office,Stationery,40050,"Printing, Stationery & General",5026,Micron Ball Point Black Stick Pens 0.7Mm Line Width - Box Of 50,10/02/2016,109879,3.00,Revenue,Lyreco UK Ltd,17623
Chorley Borough Council,http://statistics.data.gov.uk/id/local-authority/30UE,Unapportionable Central OHeads,1009,Chief Executives Office,Stationery,40050,"Printing, Stationery & General",5026,Lyreco Crepe Masking Tape - 25Mm X 50M Roll,10/02/2016,109879,3.84,Revenue,Lyreco UK Ltd,17623
Chorley Borough Council,http://statistics.data.gov.uk/id/local-authority/30UE,Unapportionable Central OHeads,1009,Chief Executives Office,Stationery,40050,"Printing, Stationery & General",5026,Assrtd Subject dividers - 12 part,10/02/2016,109879,1.00,Revenue,Lyreco UK Ltd,17623
Chorley Borough Council,http://statistics.data.gov.uk/id/local-authority/30UE,Unapportionable Central OHeads,1009,Chief Executives Office,Stationery,40050,"Printing, Stationery & General",5026,Dividers 10-part,10/02/2016,109879,1.40,Revenue,Lyreco UK Ltd,17623
Chorley Borough Council,http://statistics.data.gov.uk/id/local-authority/30UE,Unapportionable Central OHeads,1009,Chief Executives Office,Stationery,40050,"Printing, Stationery & General",5026,Sellotape (pack of 6),10/02/2016,109879,0.60,Revenue,Lyreco UK Ltd,17623
Chorley Borough Council,http://statistics.data.gov.uk/id/local-authority/30UE,Unapportionable Central OHeads,1009,Chief Executives Office,Stationery,40050,"Printing, Stationery & General",5026,Lyreco Bullet Tip Assorted Colour Whiteboard Markers - Wallet Of 4,10/02/2016,109879,0.38,Revenue,Lyreco UK Ltd,17623
Chorley Borough Council,http://statistics.data.gov.uk/id/local-authority/30UE,Democratic Represent and  Mgnt,1007,Chief Executives Office,Stationery,40050,"Printing, Stationery & General",5026,Hp C8767 No.339 Original Inkjet Cartridge - Black,10/02/2016,109879,42.88,Revenue,Lyreco UK Ltd,17623
Chorley Borough Council,http://statistics.data.gov.uk/id/local-authority/30UE,Unapportionable Central OHeads,1009,Chief Executives Office,Stationery,40050,"Printing, Stationery & General",5026,Calculators,10/02/2016,109879,37.40,Revenue,Lyreco UK Ltd,17623
Chorley Borough Council,http://statistics.data.gov.uk/id/local-authority/30UE,Unapportionable Central OHeads,1009,Chief Executives Office,Stationery,40050,"Printing, Stationery & General",5026,"689.759 BX50 VERBATIM CD-R 80MN 700MB SPINDLE 	21",10/02/2016,109879,178.45,Revenue,Lyreco UK Ltd,17623
Chorley Borough Council,http://statistics.data.gov.uk/id/local-authority/30UE,Corporate Management,1008,Chief Executives Office,Stationery,40050,"Printing, Stationery & General",5026,HP Officejet Toner 951 - Magenta,10/02/2016,109879,19.67,Revenue,Lyreco UK Ltd,17623
Chorley Borough Council,http://statistics.data.gov.uk/id/local-authority/30UE,Corporate Management,1008,Chief Executives Office,Stationery,40050,"Printing, Stationery & General",5026,HP Officejet Toner No 951 - Cyan,10/02/2016,109879,19.67,Revenue,Lyreco UK Ltd,17623
Chorley Borough Council,http://statistics.data.gov.uk/id/local-authority/30UE,Corporate Management,1008,Chief Executives Office,Computer Consumables,40099,Communication and Computing,5028,HP Officejet Toner No 951 - Yellow,10/02/2016,109879,19.67,Revenue,Lyreco UK Ltd,17623
Chorley Borough Council,http://statistics.data.gov.uk/id/local-authority/30UE,Unapportionable Central OHeads,1009,Chief Executives Office,Stationery,40050,"Printing, Stationery & General",5026,A3 Laminating Pouches 250,10/02/2016,109879,4.37,Revenue,Lyreco UK Ltd,17623
Chorley Borough Council,http://statistics.data.gov.uk/id/local-authority/30UE,Corporate Management,1008,Chief Executives Office,Stationery,40050,"Printing, Stationery & General",5026,HP Officejet Toner No 950 - Black,10/02/2016,109879,25.89,Revenue,Lyreco UK Ltd,17623
Chorley Borough Council,http://statistics.data.gov.uk/id/local-authority/30UE,Unapportionable Central OHeads,1009,Chief Executives Office,Stationery,40050,"Printing, Stationery & General",5026,Rapesco bright wallets Asst bright Foolscap Pack of 5,10/02/2016,109879,4.49,Revenue,Lyreco UK Ltd,17623
Chorley Borough Council,http://statistics.data.gov.uk/id/local-authority/30UE,Democratic Represent and  Mgnt,1007,Streetscene & Leisure Contracts,Miscellaneous Expenses,40200,Miscellaneous Expenses,5034,"Collect approximately 75 unframed illustrations (packed in approx 2-3 boxes) from Astley Hall, ChorleyDeliver to private ",24/02/2016,109974,395.00,Revenue,M & G Transport and Technical Services,22443
Chorley Borough Council,http://statistics.data.gov.uk/id/local-authority/30UE,Central Support Services,1009,Governance,Miscellaneous Expenses,40200,Miscellaneous Expenses,5034,"Medical cover for Chorley Grand Prix Includes 1 x Emergency Ambulance 1 x Paramedic1 x Technician",18/02/2016,109990,500.00,Revenue,Manchester Medical Services Limited,69452
Chorley Borough Council,http://statistics.data.gov.uk/id/local-authority/30UE,Business Support,1095,Economic Development,Miscellaneous Expenses,40200,Miscellaneous Expenses,5034,,26/02/2016,109962,250.00,Revenue,NAME REDACTED,74340
Chorley Borough Council,http://statistics.data.gov.uk/id/local-authority/30UE,Unapportionable Central OHeads,1009,HR & Org. Development,Agency Staff,13000,Direct Employee Expenses,5001,MH,03/02/2016,109642,345.40,Revenue,Matrix SCM Ltd,22128
Chorley Borough Council,http://statistics.data.gov.uk/id/local-authority/30UE,Unapportionable Central OHeads,1009,HR & Org. Development,Agency Staff,13000,Direct Employee Expenses,5001,MH,05/02/2016,109806,345.40,Revenue,Matrix SCM Ltd,22128
Chorley Borough Council,http://statistics.data.gov.uk/id/local-authority/30UE,Unapportionable Central OHeads,1009,HR & Org. Development,Agency Staff,13000,Direct Employee Expenses,5001,MH,18/02/2016,109985,345.39,Revenue,Matrix SCM Ltd,22128
Chorley Borough Council,http://statistics.data.gov.uk/id/local-authority/30UE,Service Management & Support,1009,Streetscene & Leisure Contracts,Supplies-Grounds Maintenance,40025,"Equipment, Furniture & Materia",5023,20 ton of play sand,03/02/2016,108978,418.55,Revenue,Mc & Ma Stewart (Haulage Ltd),16627
Chorley Borough Council,http://statistics.data.gov.uk/id/local-authority/30UE,Service Management & Support,1009,Streetscene & Leisure Contracts,Supplies-Grounds Maintenance,40025,"Equipment, Furniture & Materia",5023,20 tonne 20ml to dust sand stone to be delivered to Bengal street depot approx. 9am 16/12/15,03/02/2016,108979,374.67,Revenue,Mc & Ma Stewart (Haulage Ltd),16627
Chorley Borough Council,http://statistics.data.gov.uk/id/local-authority/30UE,Service Management & Support,1009,Streetscene & Leisure Contracts,Supplies-Grounds Maintenance,40025,"Equipment, Furniture & Materia",5023,20 ton of 40mm to dust limestone MOT. Delivered to YVP,03/02/2016,108980,284.20,Revenue,Mc & Ma Stewart (Haulage Ltd),16627
Chorley Borough Council,http://statistics.data.gov.uk/id/local-authority/30UE,Democratic Represent and  Mgnt,1007,Streetscene & Leisure Contracts,Playground Equipment,40008,"Equipment, Furniture & Materia",5023,90 cube of Hardwood play bark,03/02/2016,108981,"2,200.00",Revenue,Mc & Ma Stewart (Haulage Ltd),16627
Chorley Borough Council,http://statistics.data.gov.uk/id/local-authority/30UE,Service Management & Support,1009,Streetscene & Leisure Contracts,Supplies-Grounds Maintenance,40025,"Equipment, Furniture & Materia",5023,Please supply 3 x Tonne Root Zone Top dressing to be collected by Chorley Council Staff.  Please supply the root zone ,24/02/2016,108994,283.50,Revenue,Mc & Ma Stewart (Haulage Ltd),16627
Chorley Borough Council,http://statistics.data.gov.uk/id/local-authority/30UE,Service Management & Support,1009,Streetscene & Leisure Contracts,Supplies-Grounds Maintenance,40025,"Equipment, Furniture & Materia",5023,play sand,03/02/2016,109094,411.37,Revenue,Mc & Ma Stewart (Haulage Ltd),16627
Chorley Borough Council,http://statistics.data.gov.uk/id/local-authority/30UE,Service Management & Support,1009,Streetscene & Leisure Contracts,Supplies-Grounds Maintenance,40025,"Equipment, Furniture & Materia",5023,10 ton of concrete sand,10/02/2016,109770,523.50,Revenue,Mc & Ma Stewart (Haulage Ltd),16627
Chorley Borough Council,http://statistics.data.gov.uk/id/local-authority/30UE,Service Management & Support,1009,Streetscene & Leisure Contracts,Supplies-Grounds Maintenance,40025,"Equipment, Furniture & Materia",5023,10 ton of concrete sand,10/02/2016,109771,274.56,Revenue,Mc & Ma Stewart (Haulage Ltd),16627
Chorley Borough Council,http://statistics.data.gov.uk/id/local-authority/30UE,Service Management & Support,1009,Streetscene & Leisure Contracts,Supplies-Grounds Maintenance,40025,"Equipment, Furniture & Materia",5023,15 ton of concrete sand for Croston floods,10/02/2016,109772,396.00,Revenue,Mc & Ma Stewart (Haulage Ltd),16627
Chorley Borough Council,http://statistics.data.gov.uk/id/local-authority/30UE,Central Support Services,1009,Streetscene & Leisure Contracts,Miscellaneous Expenses,40200,Miscellaneous Expenses,5034,Supply and delivery of 20ft advertising blimp for Chorley GP event Inc. helium gas canister (x2),24/02/2016,110017,724.00,Revenue,Merlin Inflatables Co Limited,74342
Chorley Borough Council,http://statistics.data.gov.uk/id/local-authority/30UE,Service Management & Support,1009,Streetscene & Leisure Contracts,Supplies-Grounds Maintenance,40025,"Equipment, Furniture & Materia",5023,"Please supply the following street name plates to Chorley Council specification, as per the quotation dated 09/12/15: PEAR",10/02/2016,109756,264.62,Revenue,Midland Signs (Leicester) Ltd,16606
Chorley Borough Council,http://statistics.data.gov.uk/id/local-authority/30UE,Capital,Capital,Housing,Grants,3002,Capital Expenditure,Capital,ADDRESS REDACTED,26/02/2016,110154,"2,806.04",Capital,Mint Northwest Ltd,65607
Chorley Borough Council,http://statistics.data.gov.uk/id/local-authority/30UE,Central Support Services,1009,"Customer, ICT & Transactional",Computer Software-Maintenance,40107,Communication and Computing,5028,"Purchase of time and attendance (TMS) and HR system including terminals, proximity cards, software - TMS, self service",24/02/2016,110136,"4,000.00",Revenue,Mitrefinch Ltd,74357
Chorley Borough Council,http://statistics.data.gov.uk/id/local-authority/30UE,Private Sector HSG Renewal,1073,Housing,External Contractor,40198,Miscellaneous Expenses,5034,ADDRESS REDACTED,05/02/2016,109726,380.00,Revenue,Mobility Care Services,70841
Chorley Borough Council,http://statistics.data.gov.uk/id/local-authority/30UE,Private Sector HSG Renewal,1073,Housing,External Contractor,40198,Miscellaneous Expenses,5034,ADDRESS REDACTED,05/02/2016,109730,250.00,Revenue,Mobility Care Services,70841
Chorley Borough Council,http://statistics.data.gov.uk/id/local-authority/30UE,Private Sector HSG Renewal,1073,Housing,External Contractor,40198,Miscellaneous Expenses,5034,ADDRESS REDACTED,05/02/2016,109732,250.00,Revenue,Mobility Care Services,70841
Chorley Borough Council,http://statistics.data.gov.uk/id/local-authority/30UE,Private Sector HSG Renewal,1073,Housing,External Contractor,40198,Miscellaneous Expenses,5034,ADDRESS REDACTED,05/02/2016,109733,250.00,Revenue,Mobility Care Services,70841
Chorley Borough Council,http://statistics.data.gov.uk/id/local-authority/30UE,Private Sector HSG Renewal,1073,Housing,External Contractor,40198,Miscellaneous Expenses,5034,ADDRESS REDACTED,05/02/2016,109735,250.00,Revenue,Mobility Care Services,70841
Chorley Borough Council,http://statistics.data.gov.uk/id/local-authority/30UE,Private Sector HSG Renewal,1073,Housing,External Contractor,40198,Miscellaneous Expenses,5034,ADDRESS REDACTED,05/02/2016,109742,385.00,Revenue,Mobility Care Services,70841
Chorley Borough Council,http://statistics.data.gov.uk/id/local-authority/30UE,Private Sector HSG Renewal,1073,Housing,External Contractor,40198,Miscellaneous Expenses,5034,ADDRESS REDACTED,05/02/2016,109745,320.00,Revenue,Mobility Care Services,70841
Chorley Borough Council,http://statistics.data.gov.uk/id/local-authority/30UE,Private Sector HSG Renewal,1073,Housing,External Contractor,40198,Miscellaneous Expenses,5034,ADDRESS REDACTED,05/02/2016,109748,375.00,Revenue,Mobility Care Services,70841
Chorley Borough Council,http://statistics.data.gov.uk/id/local-authority/30UE,Private Sector HSG Renewal,1073,Housing,External Contractor,40198,Miscellaneous Expenses,5034,ADDRESS REDACTED,05/02/2016,109750,250.00,Revenue,Mobility Care Services,70841
Chorley Borough Council,http://statistics.data.gov.uk/id/local-authority/30UE,Business Support,1095,Economic Development,Grants To Other Organisations,40127,Grants and Subscriptions,5031,,10/02/2016,109711,"1,102.14",Revenue,Hallmark Chorley,72503
Chorley Borough Council,http://statistics.data.gov.uk/id/local-authority/30UE,Business Support,1095,Economic Development,Grants To Other Organisations,40127,Grants and Subscriptions,5031,,10/02/2016,109712,307.80,Revenue,NAME REDACTED,73018
Chorley Borough Council,http://statistics.data.gov.uk/id/local-authority/30UE,Business Support,1095,Economic Development,Grants To Other Organisations,40127,Grants and Subscriptions,5031,,10/02/2016,109712,"1,767.88",Revenue,NAME REDACTED,73018
Chorley Borough Council,http://statistics.data.gov.uk/id/local-authority/30UE,Business Support,1095,Economic Development,Grants To Other Organisations,40127,Grants and Subscriptions,5031,,19/02/2016,110128,274.50,Revenue,NAME REDACTED,73018
Chorley Borough Council,http://statistics.data.gov.uk/id/local-authority/30UE,Business Support,1095,Economic Development,Grants To Other Organisations,40127,Grants and Subscriptions,5031,,19/02/2016,110129,320.75,Revenue,NAME REDACTED,73018
Chorley Borough Council,http://statistics.data.gov.uk/id/local-authority/30UE,Service Management & Support,1009,Streetscene & Leisure Contracts,Tools & Equipment - Maintenance,40005,"Equipment, Furniture & Materia",5023,Carryout full winter service and cylinder grinding on Ransomes bowling green mower as on invoice number 1252,18/02/2016,110073,400.42,Revenue,MW Grass Machinery,21616
Chorley Borough Council,http://statistics.data.gov.uk/id/local-authority/30UE,Service Management & Support,1009,Streetscene & Leisure Contracts,Tools & Equipment - Maintenance,40005,"Equipment, Furniture & Materia",5023,Carryout full winter service and cylinder grinding on Ransomes Bowling green mower as on invoice number 1251,18/02/2016,110074,320.22,Revenue,MW Grass Machinery,21616
Chorley Borough Council,http://statistics.data.gov.uk/id/local-authority/30UE,Business Support,1095,Economic Development,Grants To Other Organisations,40127,Grants and Subscriptions,5031,,10/02/2016,109710,"2,596.00",Revenue,Myers Music Tuition,74224
Chorley Borough Council,http://statistics.data.gov.uk/id/local-authority/30UE,Unapportionable Central OHeads,1009,Chief Executives Office,Postages,40082,Communication and Computing,5028,"Quarterly Rental on 1 NFS330 Franking Machine, Serial Number NE8002360/DA1243567448 and 1 2kg scales. April 2015",03/02/2016,109585,631.50,Revenue,Nationwide Capital Finance Ltd,21739
Chorley Borough Council,http://statistics.data.gov.uk/id/local-authority/30UE,Business Support,1095,Streetscene & Leisure Contracts,Refuse Collection,20037,Cleaning and Domestic Supplies,5012,Disposal costs for waste from the Compactor skip Market Walk yard 1. Price per tonne.,10/02/2016,109896,"2,401.31",Revenue,Neales Waste Management,17583
Chorley Borough Council,http://statistics.data.gov.uk/id/local-authority/30UE,Economic Development,1096,Economic Development,Consultants` Fees,40077,Services,5027,"Steeley Lane photographic art panels design, consultation, draft proposals, quotations for manufacture and installation.  ",05/02/2016,109526,650.00,Revenue,Newground CIC,22064
Chorley Borough Council,http://statistics.data.gov.uk/id/local-authority/30UE,Democratic Represent and  Mgnt,1007,Governance,Electricity,20013,Energy Costs,5006,Energy Costs,03/02/2016,109005,315.96,Revenue,Npower Commercial Gas,16814
Chorley Borough Council,http://statistics.data.gov.uk/id/local-authority/30UE,Democratic Represent and  Mgnt,1007,Governance,Electricity,20013,Energy Costs,5006,Energy Costs,03/02/2016,109005,79.22,Revenue,Npower Commercial Gas,16814
Chorley Borough Council,http://statistics.data.gov.uk/id/local-authority/30UE,Service Management & Support,1009,Governance,Electricity,20013,Energy Costs,5006,Energy Costs,03/02/2016,109005,15.60,Revenue,Npower Commercial Gas,16814
Chorley Borough Council,http://statistics.data.gov.uk/id/local-authority/30UE,Democratic Represent and  Mgnt,1007,Governance,Electricity,20013,Energy Costs,5006,Energy Costs,03/02/2016,109005,10.33,Revenue,Npower Commercial Gas,16814
Chorley Borough Council,http://statistics.data.gov.uk/id/local-authority/30UE,Economic Development,1096,Governance,Electricity,20013,Energy Costs,5006,Energy Costs,03/02/2016,109005,"3,516.93",Revenue,Npower Commercial Gas,16814
Chorley Borough Council,http://statistics.data.gov.uk/id/local-authority/30UE,Democratic Represent and  Mgnt,1007,Governance,Electricity,20013,Energy Costs,5006,Energy Costs,03/02/2016,109005,277.33,Revenue,Npower Commercial Gas,16814
Chorley Borough Council,http://statistics.data.gov.uk/id/local-authority/30UE,Community Development,1097,Governance,Electricity,20013,Energy Costs,5006,Energy Costs,03/02/2016,109005,389.65,Revenue,Npower Commercial Gas,16814
Chorley Borough Council,http://statistics.data.gov.uk/id/local-authority/30UE,Community Development,1097,Governance,Electricity,20013,Energy Costs,5006,Energy Costs,03/02/2016,109005,214.98,Revenue,Npower Commercial Gas,16814
Chorley Borough Council,http://statistics.data.gov.uk/id/local-authority/30UE,Democratic Represent and  Mgnt,1007,Governance,Electricity,20013,Energy Costs,5006,Energy Costs,03/02/2016,109005,30.77,Revenue,Npower Commercial Gas,16814
Chorley Borough Council,http://statistics.data.gov.uk/id/local-authority/30UE,Democratic Represent and  Mgnt,1007,Governance,Electricity,20013,Energy Costs,5006,Energy Costs,03/02/2016,109005,307.24,Revenue,Npower Commercial Gas,16814
Chorley Borough Council,http://statistics.data.gov.uk/id/local-authority/30UE,Democratic Represent and  Mgnt,1007,Governance,Electricity,20013,Energy Costs,5006,Energy Costs,03/02/2016,109005,200.44,Revenue,Npower Commercial Gas,16814
Chorley Borough Council,http://statistics.data.gov.uk/id/local-authority/30UE,Corporate Management,1008,Governance,Electricity,20013,Energy Costs,5006,Energy Costs,03/02/2016,109005,9.15,Revenue,Npower Commercial Gas,16814
Chorley Borough Council,http://statistics.data.gov.uk/id/local-authority/30UE,Corporate Management,1008,Governance,Electricity,20013,Energy Costs,5006,Energy Costs,03/02/2016,109005,186.98,Revenue,Npower Commercial Gas,16814
Chorley Borough Council,http://statistics.data.gov.uk/id/local-authority/30UE,Unapportionable Central OHeads,1009,Governance,Electricity,20013,Energy Costs,5006,Energy Costs,03/02/2016,109005,"3,024.94",Revenue,Npower Commercial Gas,16814
Chorley Borough Council,http://statistics.data.gov.uk/id/local-authority/30UE,Unapportionable Central OHeads,1009,Governance,Electricity,20013,Energy Costs,5006,Energy Costs,03/02/2016,109005,843.92,Revenue,Npower Commercial Gas,16814
Chorley Borough Council,http://statistics.data.gov.uk/id/local-authority/30UE,Unapportionable Central OHeads,1009,Governance,Electricity,20013,Energy Costs,5006,Energy Costs,03/02/2016,109005,"2,216.09",Revenue,Npower Commercial Gas,16814
Chorley Borough Council,http://statistics.data.gov.uk/id/local-authority/30UE,Economic Development,1096,Governance,Electricity,20013,Energy Costs,5006,Energy Costs,03/02/2016,109005,9.15,Revenue,Npower Commercial Gas,16814
Chorley Borough Council,http://statistics.data.gov.uk/id/local-authority/30UE,Homelessness,1075,Governance,Electricity,20013,Energy Costs,5006,Energy Costs,03/02/2016,109005,"1,221.56",Revenue,Npower Commercial Gas,16814
Chorley Borough Council,http://statistics.data.gov.uk/id/local-authority/30UE,Business Support,1095,Governance,Electricity,20013,Energy Costs,5006,Energy Costs,03/02/2016,109005,"1,838.10",Revenue,Npower Commercial Gas,16814
Chorley Borough Council,http://statistics.data.gov.uk/id/local-authority/30UE,Democratic Represent and  Mgnt,1007,Governance,Electricity,20013,Energy Costs,5006,Energy Costs,03/02/2016,109005,56.80,Revenue,Npower Commercial Gas,16814
Chorley Borough Council,http://statistics.data.gov.uk/id/local-authority/30UE,Democratic Represent and  Mgnt,1007,Governance,Electricity,20013,Energy Costs,5006,Energy Costs,03/02/2016,109005,53.07,Revenue,Npower Commercial Gas,16814
Chorley Borough Council,http://statistics.data.gov.uk/id/local-authority/30UE,Planning Policy,1092,Governance,Electricity,20013,Energy Costs,5006,Energy Costs,05/02/2016,109809,100.36,Revenue,Npower Commercial Gas,16814
Chorley Borough Council,http://statistics.data.gov.uk/id/local-authority/30UE,Planning Policy,1092,Governance,Gas,20014,Energy Costs,5006,Energy Costs,05/02/2016,109809,370.83,Revenue,Npower Commercial Gas,16814
Chorley Borough Council,http://statistics.data.gov.uk/id/local-authority/30UE,Parking Services,1066,Governance,Electricity,20013,Energy Costs,5006,Energy Costs,24/02/2016,109878,1.03,Revenue,Npower Commercial Gas,16814
Chorley Borough Council,http://statistics.data.gov.uk/id/local-authority/30UE,Parking Services,1066,Governance,Electricity,20013,Energy Costs,5006,Energy Costs,24/02/2016,109878,102.99,Revenue,Npower Commercial Gas,16814
Chorley Borough Council,http://statistics.data.gov.uk/id/local-authority/30UE,Culture & Heritage,1036,Governance,Electricity,20013,Energy Costs,5006,Energy Costs,24/02/2016,109878,254.81,Revenue,Npower Commercial Gas,16814
Chorley Borough Council,http://statistics.data.gov.uk/id/local-authority/30UE,Democratic Represent and  Mgnt,1007,Governance,Electricity,20013,Energy Costs,5006,Energy Costs,24/02/2016,109987,205.83,Revenue,Npower Commercial Gas,16814
Chorley Borough Council,http://statistics.data.gov.uk/id/local-authority/30UE,Corporate Management,1008,Governance,Electricity,20013,Energy Costs,5006,Energy Costs,24/02/2016,109987,7.11,Revenue,Npower Commercial Gas,16814
Chorley Borough Council,http://statistics.data.gov.uk/id/local-authority/30UE,Democratic Represent and  Mgnt,1007,Governance,Electricity,20013,Energy Costs,5006,Energy Costs,24/02/2016,109987,100.22,Revenue,Npower Commercial Gas,16814
Chorley Borough Council,http://statistics.data.gov.uk/id/local-authority/30UE,Unapportionable Central OHeads,1009,Governance,Electricity,20013,Energy Costs,5006,Energy Costs,24/02/2016,109987,"3,024.59",Revenue,Npower Commercial Gas,16814
Chorley Borough Council,http://statistics.data.gov.uk/id/local-authority/30UE,Unapportionable Central OHeads,1009,Governance,Electricity,20013,Energy Costs,5006,Energy Costs,24/02/2016,109987,843.58,Revenue,Npower Commercial Gas,16814
Chorley Borough Council,http://statistics.data.gov.uk/id/local-authority/30UE,Unapportionable Central OHeads,1009,Governance,Electricity,20013,Energy Costs,5006,Energy Costs,24/02/2016,109987,"2,216.08",Revenue,Npower Commercial Gas,16814
Chorley Borough Council,http://statistics.data.gov.uk/id/local-authority/30UE,Homelessness,1075,Governance,Electricity,20013,Energy Costs,5006,Energy Costs,24/02/2016,109987,195.60,Revenue,Npower Commercial Gas,16814
Chorley Borough Council,http://statistics.data.gov.uk/id/local-authority/30UE,Democratic Represent and  Mgnt,1007,Governance,Electricity,20013,Energy Costs,5006,Energy Costs,24/02/2016,109987,57.66,Revenue,Npower Commercial Gas,16814
Chorley Borough Council,http://statistics.data.gov.uk/id/local-authority/30UE,Parking Services,1066,Streetscene & Leisure Contracts,External Contractors,50008,Private Contractors,5042,"�Provision of off street car park enforcement, cash collection, cash counting facilities and third party bulk cash collections�",05/02/2016,109691,"3,568.88",Revenue,NSL Limited,67253
Chorley Borough Council,http://statistics.data.gov.uk/id/local-authority/30UE,Business Support,1095,Governance,Electricity,20013,Energy Costs,5006,Landlords market walk,05/02/2016,109596,"1,687.86",Revenue,Opus Energy Ltd,65093
Chorley Borough Council,http://statistics.data.gov.uk/id/local-authority/30UE,Parking Services,1066,Governance,Tools & Equipment - Purchase,40003,"Equipment, Furniture & Materia",5023,"Please supply x2 Solar Powered Strada Transfer, COIN ONLY collection system by transfer canister (included) in standard ",26/02/2016,109854,"6,614.00",Revenue,Parkeon Ltd,16279
Chorley Borough Council,http://statistics.data.gov.uk/id/local-authority/30UE,Parking Services,1066,Governance,Tools & Equipment - Purchase,40003,"Equipment, Furniture & Materia",5023,Installation of Strada machine by a Parkeon approved CHAS registered sub-contractor,26/02/2016,109854,990.00,Revenue,Parkeon Ltd,16279
Chorley Borough Council,http://statistics.data.gov.uk/id/local-authority/30UE,Democratic Represent and  Mgnt,1007,Governance,Mayoral Hospitality,40123,Expenses,5030,DJ and lighting for the Mayor`s Christmas Soul Night on 18th December 2015.,05/02/2016,109804,250.00,Revenue,Paul K Sound & Vision,16607
Chorley Borough Council,http://statistics.data.gov.uk/id/local-authority/30UE,Service Management & Support,1009,Streetscene & Leisure Contracts,Supplies-Grounds Maintenance,40025,"Equipment, Furniture & Materia",5023,Various indoor plants for the Mayors Charity Ball,24/02/2016,110055,744.90,Revenue,Peter H Smith Limited,17088
Chorley Borough Council,http://statistics.data.gov.uk/id/local-authority/30UE,Central Support Services,1009,Health Environment & Neighbourhoods,External Contractor,40198,Miscellaneous Expenses,5034,Pest control services from April 1st 2015 up to and inclusive March 31st 2016,05/02/2016,109706,323.83,Revenue,Peter L Johnson,16727
Chorley Borough Council,http://statistics.data.gov.uk/id/local-authority/30UE,Central Support Services,1009,Health Environment & Neighbourhoods,External Contractor,40198,Miscellaneous Expenses,5034,Pest control services from April 1st 2015 up to and inclusive March 31st 2016,12/02/2016,109915,323.83,Revenue,Peter L Johnson,16727
Chorley Borough Council,http://statistics.data.gov.uk/id/local-authority/30UE,Service Management & Support,1009,Streetscene & Leisure Contracts,Diesel/Derv,30007,Direct Transport Costs,5016,2000 litre white diesel,12/02/2016,109956,"1,796.00",Revenue,Pilkington Oils,18075
Chorley Borough Council,http://statistics.data.gov.uk/id/local-authority/30UE,Capital,Capital,Governance,Main Contractor,3007,Capital Expenditure,Capital,"Chorley Town Centre public realm design, consultation & preparation of specification for the area bounded by Union Street",19/02/2016,110077,"6,537.50",Capital,Planit IE Limited,62532
Chorley Borough Council,http://statistics.data.gov.uk/id/local-authority/30UE,Economic Development,1096,Governance,Promotional Expenses,40159,Miscellaneous Expenses,5034,Carry out works as per quote ref: 6347/2 1 Unit(s) Apex entrance Both ends of the market Print and install full coverage ,03/02/2016,109413,423.64,Revenue,Poppy Signs Ltd,21898
Chorley Borough Council,http://statistics.data.gov.uk/id/local-authority/30UE,Economic Development,1096,Governance,Promotional Expenses,40159,Miscellaneous Expenses,5034,1 Unit(s) Entrances to the Market Manufacture and install an aluminium composite sign panel over each entrance and cross,03/02/2016,109413,990.43,Revenue,Poppy Signs Ltd,21898
Chorley Borough Council,http://statistics.data.gov.uk/id/local-authority/30UE,Economic Development,1096,Governance,Promotional Expenses,40159,Miscellaneous Expenses,5034,1 Unit(s) Rear of Flat Iron parking signs. Bath of 2 Full colour digitally printed large sticker Installed,03/02/2016,109413,164.14,Revenue,Poppy Signs Ltd,21898
Chorley Borough Council,http://statistics.data.gov.uk/id/local-authority/30UE,Economic Development,1096,Governance,Promotional Expenses,40159,Miscellaneous Expenses,5034,1 Unit(s) Annual permit stickers supply only - dropped into the Town Hall Batch of 5 (note you will get some spares to pad ,03/02/2016,109413,31.83,Revenue,Poppy Signs Ltd,21898
Chorley Borough Council,http://statistics.data.gov.uk/id/local-authority/30UE,Economic Development,1096,Streetscene & Leisure Contracts,Fixtures & Fittings - Repair/Mtnce,20028,Fixtures and Fittings,5010,Supply and fit chevrons on town centre gates as per quote number 25803,18/02/2016,109415,250.00,Revenue,Poppy Signs Ltd,21898
Chorley Borough Council,http://statistics.data.gov.uk/id/local-authority/30UE,Parking Services,1066,Governance,Publicity - Advertising,40157,Miscellaneous Expenses,5034,Car park boards,24/02/2016,110192,"1,777.21",Revenue,Poppy Signs Ltd,21898
Chorley Borough Council,http://statistics.data.gov.uk/id/local-authority/30UE,Unapportionable Central OHeads,1009,HR & Org. Development,HR Approved Training Expenses,17001,Indirect Employee Expenses,5002,Half Day Training Course - Dealing with Change - Wednesday 10 February 2016 pm,18/02/2016,109996,495.00,Revenue,Potential Unearthed,22243
Chorley Borough Council,http://statistics.data.gov.uk/id/local-authority/30UE,Unapportionable Central OHeads,1009,HR & Org. Development,HR Approved Training Expenses,17001,Indirect Employee Expenses,5002,Half Day Training Course - Developing Me - Tuesday 16 February 2016 am,19/02/2016,110122,495.00,Revenue,Potential Unearthed,22243
Chorley Borough Council,http://statistics.data.gov.uk/id/local-authority/30UE,Unapportionable Central OHeads,1009,Policy & Performance,Miscellaneous Expenses,40200,Miscellaneous Expenses,5034,Media monitoring service,10/02/2016,109883,500.00,Revenue,Precise Media Monitoring Ltd,73335
Chorley Borough Council,http://statistics.data.gov.uk/id/local-authority/30UE,Unapportionable Central OHeads,1009,Chief Executives Office,Stationery,40050,"Printing, Stationery & General",5026,"Evolution Everyday A4 80gsm, Box 2500",03/02/2016,109723,454.00,Revenue,Premier Paper Group,54451
Chorley Borough Council,http://statistics.data.gov.uk/id/local-authority/30UE,Unapportionable Central OHeads,1009,Chief Executives Office,Stationery,40050,"Printing, Stationery & General",5026,Evolution Everyday A3 80gsm box 2500,03/02/2016,109723,46.15,Revenue,Premier Paper Group,54451
Chorley Borough Council,http://statistics.data.gov.uk/id/local-authority/30UE,Unapportionable Central OHeads,1009,Governance,Refreshments,40036,Catering,5024,council offices water cooler supply and sanitation,10/02/2016,109820,356.40,Revenue,Pressure Coolers Ltd T/A Maestro International,19767
Chorley Borough Council,http://statistics.data.gov.uk/id/local-authority/30UE,Elections,1012,Governance,Postages,40082,Communication and Computing,5028,ITR postage x 1054,05/02/2016,109775,382.60,Revenue,Print Image Facilities LLP,57870
Chorley Borough Council,http://statistics.data.gov.uk/id/local-authority/30UE,Elections,1012,Governance,Postages,40082,Communication and Computing,5028,poll cards to empty properties x 5531,05/02/2016,109776,"1,532.09",Revenue,Print Image Facilities LLP,57870
Chorley Borough Council,http://statistics.data.gov.uk/id/local-authority/30UE,Elections,1012,Governance,Postages,40082,Communication and Computing,5028,postage for letter to EU Citizens,18/02/2016,110054,364.20,Revenue,Print Image Facilities LLP,57870
Chorley Borough Council,http://statistics.data.gov.uk/id/local-authority/30UE,Elections,1012,Governance,Printing,40043,"Printing, Stationery & General",5026,`poll card` to empty properties x 5531,10/02/2016,109886,"1,636.25",Revenue,Print Image Network,21171
Chorley Borough Council,http://statistics.data.gov.uk/id/local-authority/30UE,Central Support Services,1009,Governance,Professional Fees,14011,Direct Employee Expenses,5001,2016 Membership Renewal,26/02/2016,109489,640.00,Revenue,RICS Business Services Ltd,17439
Chorley Borough Council,http://statistics.data.gov.uk/id/local-authority/30UE,Economic Development,1096,Streetscene & Leisure Contracts,Fixtures & Fittings - Repair/Mtnce,20028,Fixtures and Fittings,5010,Remove 2x town centre gates strip and rub down prime and repaint as required. Refit gates,18/02/2016,109431,750.00,Revenue,Sam Bird Motorbodies,20116
Chorley Borough Council,http://statistics.data.gov.uk/id/local-authority/30UE,Democratic Represent and  Mgnt,1007,Governance,Electricity,20013,Energy Costs,5006,Tatton,03/02/2016,109521,674.58,Revenue,Scottish Power,19010
Chorley Borough Council,http://statistics.data.gov.uk/id/local-authority/30UE,Democratic Represent and  Mgnt,1007,Governance,Electricity,20013,Energy Costs,5006,,03/02/2016,109521,42.00,Revenue,Scottish Power,19010
Chorley Borough Council,http://statistics.data.gov.uk/id/local-authority/30UE,Homelessness,1075,Housing,External Contractor,40198,Miscellaneous Expenses,5034,"Concierge Service at Cotswold Supported Housing, Cotswold Road, Chorley, Lancashire, PR7 3HW. This is for period Feb",03/02/2016,109606,"3,437.01",Revenue,Sector Security Services,19269
Chorley Borough Council,http://statistics.data.gov.uk/id/local-authority/30UE,Homelessness,1075,Housing,External Contractor,40198,Miscellaneous Expenses,5034,"Concierge Services to be provided to Cotswold Supported Housing, Cotswold Road, Chorley, PR7 3HW, for the months Jan",05/02/2016,109611,"1,453.36",Revenue,Sector Security Services,19269
Chorley Borough Council,http://statistics.data.gov.uk/id/local-authority/30UE,Elections,1012,Governance,Stationery,40050,"Printing, Stationery & General",5026,Presiding Officers sundries - PCC Elections,24/02/2016,110206,"1,102.50",Revenue,Shaw & Sons Ltd,18092
Chorley Borough Council,http://statistics.data.gov.uk/id/local-authority/30UE,Elections,1012,Governance,Stationery,40050,"Printing, Stationery & General",5026,Local conversion packs,24/02/2016,110206,408.75,Revenue,Shaw & Sons Ltd,18092
Chorley Borough Council,http://statistics.data.gov.uk/id/local-authority/30UE,Elections,1012,Governance,Stationery,40050,"Printing, Stationery & General",5026,LE-AP - Borough Election Agents Packs,24/02/2016,110219,428.00,Revenue,Shaw & Sons Ltd,18092
Chorley Borough Council,http://statistics.data.gov.uk/id/local-authority/30UE,Elections,1012,Governance,Stationery,40050,"Printing, Stationery & General",5026,PCE-CP  Candidate Packs (Parish),24/02/2016,110219,321.00,Revenue,Shaw & Sons Ltd,18092
Chorley Borough Council,http://statistics.data.gov.uk/id/local-authority/30UE,Democratic Represent and  Mgnt,1007,Governance,Mayoral Hospitality,40123,Expenses,5030,"Catering at the Mayor`s Charity Ball on Friday 5th February 2016, including refreshments for visiting Mayors` Attendants.",12/02/2016,109966,"2,746.35",Revenue,"Shaw Hill Hotel, Golf & Country Club",17056
Chorley Borough Council,http://statistics.data.gov.uk/id/local-authority/30UE,Unapportionable Central OHeads,1009,Governance,Refreshments,40036,Catering,5024,Refreshments for Civics staff,12/02/2016,109966,46.20,Revenue,"Shaw Hill Hotel, Golf & Country Club",17056
Chorley Borough Council,http://statistics.data.gov.uk/id/local-authority/30UE,Parking Services,1066,Streetscene & Leisure Contracts,External Contractor,40198,Miscellaneous Expenses,5034,Carryout resurfacing works and resetting of gullies on West St Car Park as per you quotation,24/02/2016,110169,"2,957.60",Revenue,Shiloh Surfacing,61457
Chorley Borough Council,http://statistics.data.gov.uk/id/local-authority/30UE,Service Management & Support,1009,Streetscene & Leisure Contracts,Protective Clothing,40040,"Clothing, Uniforms and Laundry",5025,ORN Hawk Cargo Trousers.  30`` Waist - Regular Leg.  Product Code = CSR38,10/02/2016,109841,38.70,Revenue,Smart Image Workwear,21064
Chorley Borough Council,http://statistics.data.gov.uk/id/local-authority/30UE,Service Management & Support,1009,Streetscene & Leisure Contracts,Protective Clothing,40040,"Clothing, Uniforms and Laundry",5025,ORN Hawk Cargo Trousers.  32`` Waist - Regular Leg.   Product Code = CSR38,10/02/2016,109841,64.50,Revenue,Smart Image Workwear,21064
Chorley Borough Council,http://statistics.data.gov.uk/id/local-authority/30UE,Service Management & Support,1009,Streetscene & Leisure Contracts,Protective Clothing,40040,"Clothing, Uniforms and Laundry",5025,ORN Hawk Cargo Trousers.  34`` Waist - Regular Leg.   Product Code = CSR38,10/02/2016,109841,64.50,Revenue,Smart Image Workwear,21064
Chorley Borough Council,http://statistics.data.gov.uk/id/local-authority/30UE,Service Management & Support,1009,Streetscene & Leisure Contracts,Protective Clothing,40040,"Clothing, Uniforms and Laundry",5025,"Uneek UC601 Zip Fleece Jacket, colour Red c/w Chorley Council all white logo embroidered on front. Size = Large.",10/02/2016,109841,66.90,Revenue,Smart Image Workwear,21064
Chorley Borough Council,http://statistics.data.gov.uk/id/local-authority/30UE,Service Management & Support,1009,Streetscene & Leisure Contracts,Protective Clothing,40040,"Clothing, Uniforms and Laundry",5025,"Uneek UC601 Zip Fleece Jacket, colour Red c/w Chorley Council all white logo embroidered on front. Size = Medium.",10/02/2016,109841,66.90,Revenue,Smart Image Workwear,21064
Chorley Borough Council,http://statistics.data.gov.uk/id/local-authority/30UE,Service Management & Support,1009,Streetscene & Leisure Contracts,Protective Clothing,40040,"Clothing, Uniforms and Laundry",5025,"Uneek UC601 Zip Fleece Jacket, colour Red c/w Chorley Council all white logo embroidered on front. Size = XXLarge.  ",10/02/2016,109841,33.45,Revenue,Smart Image Workwear,21064
Chorley Borough Council,http://statistics.data.gov.uk/id/local-authority/30UE,Service Management & Support,1009,Streetscene & Leisure Contracts,Protective Clothing,40040,"Clothing, Uniforms and Laundry",5025,"High Vis Yellow PU waterproof unlined outer jacket, hydra flow breathable c/w Chorley Council screen printed on front and ba",24/02/2016,110011,111.25,Revenue,Smart Image Workwear,21064
Chorley Borough Council,http://statistics.data.gov.uk/id/local-authority/30UE,Service Management & Support,1009,Streetscene & Leisure Contracts,Protective Clothing,40040,"Clothing, Uniforms and Laundry",5025,"High Vis Yellow waterproof, windproof, breathable outer trousers.  Size = Large.  Product Code = CSR33.",24/02/2016,110011,121.50,Revenue,Smart Image Workwear,21064
Chorley Borough Council,http://statistics.data.gov.uk/id/local-authority/30UE,Service Management & Support,1009,Streetscene & Leisure Contracts,Protective Clothing,40040,"Clothing, Uniforms and Laundry",5025,"High Vis Yellow waterproof, windproof, breathable outer trousers.  Size = X Large,  Product Code = CSR33",24/02/2016,110011,121.50,Revenue,Smart Image Workwear,21064
Chorley Borough Council,http://statistics.data.gov.uk/id/local-authority/30UE,Service Management & Support,1009,Streetscene & Leisure Contracts,Protective Clothing,40040,"Clothing, Uniforms and Laundry",5025,"Uneek UC122 Polo Shirt.  Colour Red c/w Chorley Council Logo, all white embroidered left breast. Product Code = CSR34",24/02/2016,110158,61.50,Revenue,Smart Image Workwear,21064
Chorley Borough Council,http://statistics.data.gov.uk/id/local-authority/30UE,Service Management & Support,1009,Streetscene & Leisure Contracts,Protective Clothing,40040,"Clothing, Uniforms and Laundry",5025,Uneek UC203 crew neck sweat shirt.  Colour Red c/w Chorley Council logo all white embroidered left breast.Product Code ,24/02/2016,110158,40.25,Revenue,Smart Image Workwear,21064
Chorley Borough Council,http://statistics.data.gov.uk/id/local-authority/30UE,Service Management & Support,1009,Streetscene & Leisure Contracts,Protective Clothing,40040,"Clothing, Uniforms and Laundry",5025,Uneek UC203 crew neck sweat shirt.  Colour Red c/w Chorley Council logo all white embroidered left breast.Product Code =,24/02/2016,110158,80.50,Revenue,Smart Image Workwear,21064
Chorley Borough Council,http://statistics.data.gov.uk/id/local-authority/30UE,Service Management & Support,1009,Streetscene & Leisure Contracts,Protective Clothing,40040,"Clothing, Uniforms and Laundry",5025,Uneek UC203 crew neck sweat shirt.  Colour Red c/w Chorley Council logo all white embroidered left breast.  Product Code ,24/02/2016,110158,80.50,Revenue,Smart Image Workwear,21064
Chorley Borough Council,http://statistics.data.gov.uk/id/local-authority/30UE,Service Management & Support,1009,Streetscene & Leisure Contracts,Protective Clothing,40040,"Clothing, Uniforms and Laundry",5025,Uneek UC203 crew neck sweat shirt.  Colour Red c/w Chorley Council logo all white embroidered left breast. Product Code,24/02/2016,110158,80.50,Revenue,Smart Image Workwear,21064
Chorley Borough Council,http://statistics.data.gov.uk/id/local-authority/30UE,Service Management & Support,1009,Streetscene & Leisure Contracts,Protective Clothing,40040,"Clothing, Uniforms and Laundry",5025,"Black Beanie chunky knit hat c/w Chorley Council Logo, all white, embroidered.  Product Code = CSR46.",24/02/2016,110158,57.00,Revenue,Smart Image Workwear,21064
Chorley Borough Council,http://statistics.data.gov.uk/id/local-authority/30UE,Service Management & Support,1009,Streetscene & Leisure Contracts,Protective Clothing,40040,"Clothing, Uniforms and Laundry",5025,Black Baseball Cap c/w Chorley Council Logo embroidered.  Product Code = CSR47.,24/02/2016,110158,59.00,Revenue,Smart Image Workwear,21064
Chorley Borough Council,http://statistics.data.gov.uk/id/local-authority/30UE,Homelessness,1075,Housing,Grants To Other Organisations,40127,Grants and Subscriptions,5031,South Lancashire Single Homelessness Initiative grant distribution mainly from the Accommodation Finding Service budget,12/02/2016,109912,"11,650.00",Revenue,South Ribble Borough Council,17889
Chorley Borough Council,http://statistics.data.gov.uk/id/local-authority/30UE,Central Support Services,1009,"Customer, ICT & Transactional",Computer Equipment-Maintenance,40105,Communication and Computing,5028,"Addition of Cicso blade server, B230 M2 (FCH163574Z3) to existing contract 22408, 24x7 4 hour fix including Inc Hardware",18/02/2016,108661,54.00,Revenue,Starcom Technologies Limited,20541
Chorley Borough Council,http://statistics.data.gov.uk/id/local-authority/30UE,Central Support Services,1009,"Customer, ICT & Transactional",Computer Equipment-Maintenance,40105,Communication and Computing,5028,"Addition of Cicso blade server, B200 M3 (FCH1834JF31) to existing contract 22408, 24x7 4 hour fix including Includes",18/02/2016,108661,54.00,Revenue,Starcom Technologies Limited,20541
Chorley Borough Council,http://statistics.data.gov.uk/id/local-authority/30UE,Central Support Services,1009,"Customer, ICT & Transactional",Computer Equipment-Maintenance,40105,Communication and Computing,5028,"Addition of Cisco network hardware - 2 x Nexus 5k, 2 x 4900m, 14 x 3750 to contract 22408, to include 24x7 4 hour fix,",18/02/2016,108661,"3,655.96",Revenue,Starcom Technologies Limited,20541
Chorley Borough Council,http://statistics.data.gov.uk/id/local-authority/30UE,Capital,Capital,Streetscene & Leisure Contracts,Equipment,3014,Capital Expenditure,Capital,2100 x  55 litre green ergo boxes Chorley spec and logo.,05/02/2016,109707,"5,418.00",Capital,Straight Plc,17633
Chorley Borough Council,http://statistics.data.gov.uk/id/local-authority/30UE,Capital,Capital,Streetscene & Leisure Contracts,Equipment,3014,Capital Expenditure,Capital,40 litre inner caddy.,26/02/2016,110202,"3,906.00",Capital,Straight Plc,17633
Chorley Borough Council,http://statistics.data.gov.uk/id/local-authority/30UE,Capital,Capital,Streetscene & Leisure Contracts,Equipment,3014,Capital Expenditure,Capital,"55 litre ergo box Colour :GreenChorley BC artwork",26/02/2016,110203,"2,709.00",Capital,Straight Plc,17633
Chorley Borough Council,http://statistics.data.gov.uk/id/local-authority/30UE,Capital,Capital,Housing,Grants,3002,Capital Expenditure,Capital,ADDRESS REDACTED,03/02/2016,109500,"6,295.00",Capital,Stringfellow Bldg Cntrctrs Ltd,17893
Chorley Borough Council,http://statistics.data.gov.uk/id/local-authority/30UE,Capital,Capital,Housing,Grants,3002,Capital Expenditure,Capital,ADDRESS REDACTED,03/02/2016,109502,"6,430.00",Capital,Stringfellow Bldg Cntrctrs Ltd,17893
Chorley Borough Council,http://statistics.data.gov.uk/id/local-authority/30UE,Unapportionable Central OHeads,1009,Governance,General Repairs - Reactive,20004,Repairs Maintenance & Alts,5005,Blanket reactive Aug-Dec 2015.,05/02/2016,109544,518.76,Revenue,Stringfellow Bldg Cntrctrs Ltd,17893
Chorley Borough Council,http://statistics.data.gov.uk/id/local-authority/30UE,Unapportionable Central OHeads,1009,Governance,General Repairs - Reactive,20004,Repairs Maintenance & Alts,5005,Blanket order for REACTIVE works for 2016.,26/02/2016,109946,"1,611.20",Revenue,Stringfellow Bldg Cntrctrs Ltd,17893
Chorley Borough Council,http://statistics.data.gov.uk/id/local-authority/30UE,Unapportionable Central OHeads,1009,Governance,General Repairs - Reactive,20004,Repairs Maintenance & Alts,5005,Blanket order for REACTIVE works for 2016.,26/02/2016,109947,"2,167.41",Revenue,Stringfellow Bldg Cntrctrs Ltd,17893
Chorley Borough Council,http://statistics.data.gov.uk/id/local-authority/30UE,Capital,Capital,Housing,Grants,3002,Capital Expenditure,Capital,ADDRESS REDACTED,26/02/2016,110156,750.00,Capital,Stringfellow Bldg Cntrctrs Ltd,17893
Chorley Borough Council,http://statistics.data.gov.uk/id/local-authority/30UE,Capital,Capital,Housing,Grants,3002,Capital Expenditure,Capital,ADDRESS REDACTED,26/02/2016,110157,"2,790.00",Capital,Stringfellow Bldg Cntrctrs Ltd,17893
Chorley Borough Council,http://statistics.data.gov.uk/id/local-authority/30UE,Unapportionable Central OHeads,1009,Governance,General Repairs - Reactive,20004,Repairs Maintenance & Alts,5005,Works to Doctor`s Surgery at 22-24 Gillibrand Street.,26/02/2016,110198,"4,250.00",Revenue,Stringfellow Bldg Cntrctrs Ltd,17893
Chorley Borough Council,http://statistics.data.gov.uk/id/local-authority/30UE,Unapportionable Central OHeads,1009,Governance,General Repairs - Reactive,20004,Repairs Maintenance & Alts,5005,Works to Doctor`s Surgery at 22-24 Gillibrand Street.,26/02/2016,110201,"3,690.00",Revenue,Stringfellow Bldg Cntrctrs Ltd,17893
Chorley Borough Council,http://statistics.data.gov.uk/id/local-authority/30UE,Capital,Capital,Housing,Grants,3002,Capital Expenditure,Capital,,26/02/2016,110204,"3,350.00",Capital,Stringfellow Bldg Cntrctrs Ltd,17893
Chorley Borough Council,http://statistics.data.gov.uk/id/local-authority/30UE,Economic Development,1096,Governance,Cleaning Materials,40019,"Equipment, Furniture & Materia",5023,Cleaning Materials for the covered market toilets.  Order sheet to follow. PLEASE DELIVER WEDNESDAY.,18/02/2016,109701,409.35,Revenue,Swiftkleen Ltd,17933
Chorley Borough Council,http://statistics.data.gov.uk/id/local-authority/30UE,Homelessness,1075,Housing,Cleaning Materials,40019,"Equipment, Furniture & Materia",5023,BLU - Lemon concentrated detergent 5 Ltr.,05/02/2016,109758,6.52,Revenue,Swiftkleen Ltd,17933
Chorley Borough Council,http://statistics.data.gov.uk/id/local-authority/30UE,Homelessness,1075,Housing,Cleaning Materials,40019,"Equipment, Furniture & Materia",5023,8B - General Purpose Bleach 5 Ltr.,05/02/2016,109758,2.40,Revenue,Swiftkleen Ltd,17933
Chorley Borough Council,http://statistics.data.gov.uk/id/local-authority/30UE,Homelessness,1075,Housing,Cleaning Materials,40019,"Equipment, Furniture & Materia",5023,CITF - Hand Soap 5 Ltr.,05/02/2016,109758,8.76,Revenue,Swiftkleen Ltd,17933
Chorley Borough Council,http://statistics.data.gov.uk/id/local-authority/30UE,Homelessness,1075,Housing,Cleaning Materials,40019,"Equipment, Furniture & Materia",5023,EVER1 - Toilet Cleaner 5 Ltr.,05/02/2016,109758,1.92,Revenue,Swiftkleen Ltd,17933
Chorley Borough Council,http://statistics.data.gov.uk/id/local-authority/30UE,Homelessness,1075,Housing,Cleaning Materials,40019,"Equipment, Furniture & Materia",5023,NITPF - latex free disposable gloves - SMALL,05/02/2016,109758,5.90,Revenue,Swiftkleen Ltd,17933
Chorley Borough Council,http://statistics.data.gov.uk/id/local-authority/30UE,Homelessness,1075,Housing,Cleaning Materials,40019,"Equipment, Furniture & Materia",5023,FRESHAEROWB - any fragrance,05/02/2016,109758,8.40,Revenue,Swiftkleen Ltd,17933
Chorley Borough Council,http://statistics.data.gov.uk/id/local-authority/30UE,Homelessness,1075,Housing,Cleaning Materials,40019,"Equipment, Furniture & Materia",5023,DPB - dust pan and brush set - RED,05/02/2016,109758,5.00,Revenue,Swiftkleen Ltd,17933
Chorley Borough Council,http://statistics.data.gov.uk/id/local-authority/30UE,Homelessness,1075,Housing,Cleaning Materials,40019,"Equipment, Furniture & Materia",5023,EX250PY - Mop Head - RED,05/02/2016,109758,5.88,Revenue,Swiftkleen Ltd,17933
Chorley Borough Council,http://statistics.data.gov.uk/id/local-authority/30UE,Homelessness,1075,Housing,Cleaning Materials,40019,"Equipment, Furniture & Materia",5023,39BBL - Heavy Duty Black Refuse Sack,05/02/2016,109758,23.40,Revenue,Swiftkleen Ltd,17933
Chorley Borough Council,http://statistics.data.gov.uk/id/local-authority/30UE,Homelessness,1075,Housing,Cleaning Materials,40019,"Equipment, Furniture & Materia",5023,5000B - Blue Paper Towels,05/02/2016,109758,24.80,Revenue,Swiftkleen Ltd,17933
Chorley Borough Council,http://statistics.data.gov.uk/id/local-authority/30UE,Homelessness,1075,Housing,Cleaning Materials,40019,"Equipment, Furniture & Materia",5023,MJ200R - Sirius mini jumbo toilet rolls,05/02/2016,109758,43.05,Revenue,Swiftkleen Ltd,17933
Chorley Borough Council,http://statistics.data.gov.uk/id/local-authority/30UE,Homelessness,1075,Housing,Cleaning Materials,40019,"Equipment, Furniture & Materia",5023,DUVET - single duvet,05/02/2016,109758,57.60,Revenue,Swiftkleen Ltd,17933
Chorley Borough Council,http://statistics.data.gov.uk/id/local-authority/30UE,Homelessness,1075,Housing,Cleaning Materials,40019,"Equipment, Furniture & Materia",5023,PILLOW 2 - two pack medium pillows,05/02/2016,109758,43.52,Revenue,Swiftkleen Ltd,17933
Chorley Borough Council,http://statistics.data.gov.uk/id/local-authority/30UE,Homelessness,1075,Housing,Cleaning Materials,40019,"Equipment, Furniture & Materia",5023,KETTLE - basic white electric kettle,05/02/2016,109758,59.65,Revenue,Swiftkleen Ltd,17933
Chorley Borough Council,http://statistics.data.gov.uk/id/local-authority/30UE,Homelessness,1075,Housing,Cleaning Materials,40019,"Equipment, Furniture & Materia",5023,MUG - basic mug,05/02/2016,109758,12.00,Revenue,Swiftkleen Ltd,17933
Chorley Borough Council,http://statistics.data.gov.uk/id/local-authority/30UE,Homelessness,1075,Housing,Cleaning Materials,40019,"Equipment, Furniture & Materia",5023,KITCHEN KNIFE - chef`s utility knife,05/02/2016,109758,8.75,Revenue,Swiftkleen Ltd,17933
Chorley Borough Council,http://statistics.data.gov.uk/id/local-authority/30UE,Homelessness,1075,Housing,Cleaning Materials,40019,"Equipment, Furniture & Materia",5023,FISH SLICE - basic metal fish slice,05/02/2016,109758,5.40,Revenue,Swiftkleen Ltd,17933
Chorley Borough Council,http://statistics.data.gov.uk/id/local-authority/30UE,Homelessness,1075,Housing,Cleaning Materials,40019,"Equipment, Furniture & Materia",5023,SLOTTED SPOON - basic slotted spoon,05/02/2016,109758,5.40,Revenue,Swiftkleen Ltd,17933
Chorley Borough Council,http://statistics.data.gov.uk/id/local-authority/30UE,Economic Development,1096,Governance,Cleaning Materials,40019,"Equipment, Furniture & Materia",5023,Janitorial products for the covered market toilets + PPE,24/02/2016,110200,329.36,Revenue,Swiftkleen Ltd,17933
Chorley Borough Council,http://statistics.data.gov.uk/id/local-authority/30UE,Capital,Capital,Health Environment & Neighbourhoods,Main Contractor,3007,Capital Expenditure,Capital,Capital Works - all upgrade of equipment and control room,24/02/2016,108877,"1,650.00",Capital,Technology Solutions,72376
Chorley Borough Council,http://statistics.data.gov.uk/id/local-authority/30UE,Business Support,1095,Economic Development,Grants To Other Organisations,40127,Grants and Subscriptions,5031,,18/02/2016,109894,868.50,Revenue,The Buttonhole,18367
Chorley Borough Council,http://statistics.data.gov.uk/id/local-authority/30UE,Unapportionable Central OHeads,1009,Governance,General Repairs - Reactive,20004,Repairs Maintenance & Alts,5005,Reactive blanket order until September 2015.,05/02/2016,109527,430.00,Revenue,The Guardian Shutter Co LTD,21769
Chorley Borough Council,http://statistics.data.gov.uk/id/local-authority/30UE,Unapportionable Central OHeads,1009,Governance,General Repairs - Reactive,20004,Repairs Maintenance & Alts,5005,Reactive blanket order until September 2015.,05/02/2016,109667,630.00,Revenue,The Guardian Shutter Co LTD,21769
Chorley Borough Council,http://statistics.data.gov.uk/id/local-authority/30UE,Unapportionable Central OHeads,1009,Governance,Planned Maintenance,20006,Repairs Maintenance & Alts,5005,PPM blanket order until September 2015.,24/02/2016,110072,560.00,Revenue,The Guardian Shutter Co LTD,21769
Chorley Borough Council,http://statistics.data.gov.uk/id/local-authority/30UE,Unapportionable Central OHeads,1009,Governance,Chorley B.C. Souvenirs,40028,"Equipment, Furniture & Materia",5023,250 x red filled pencil cases. Printed with Chorley crest in black. Product code 187034.,12/02/2016,109490,540.00,Revenue,Total Merchandise Ltd,20898
Chorley Borough Council,http://statistics.data.gov.uk/id/local-authority/30UE,Parking Services,1066,Governance,External Contractors,50008,Private Contractors,5042,Outstanding Debt Registration Costs,03/02/2016,109702,"1,000.00",Revenue,Traffic Enforcement Centre,22350
Chorley Borough Council,http://statistics.data.gov.uk/id/local-authority/30UE,Capital,Capital,Streetscene & Leisure Contracts,Main Contractor,3007,Capital Expenditure,Capital,2 weeks tree work at Carr Brook as per the management schedule and site visit for 3 men and tracked chipper.  ,03/02/2016,109612,"7,000.00",Capital,Treescape North West Ltd,17688
Chorley Borough Council,http://statistics.data.gov.uk/id/local-authority/30UE,Capital,Capital,Streetscene & Leisure Contracts,Main Contractor,3007,Capital Expenditure,Capital,Further woodland management works to Carr Brook as agreed on site walk over week commencing 1st Feb 2016,10/02/2016,109613,"3,500.00",Capital,Treescape North West Ltd,17688
Chorley Borough Council,http://statistics.data.gov.uk/id/local-authority/30UE,Unapportionable Central OHeads,1009,HR & Org. Development,Miscellaneous Expenses,40200,Miscellaneous Expenses,5034,level 1-5,26/02/2016,110139,"1,467.87",Revenue,UK Healthcare (BDHSC),17241
Chorley Borough Council,http://statistics.data.gov.uk/id/local-authority/30UE,Control Accounts,Control,HR & Org. Development,General Balances,100,Balance Sheet,Balance,top ups,26/02/2016,110139,638.45,Revenue,UK Healthcare (BDHSC),17241
Chorley Borough Council,http://statistics.data.gov.uk/id/local-authority/30UE,Unapportionable Central OHeads,1009,HR & Org. Development,Miscellaneous Expenses,40200,Miscellaneous Expenses,5034,Levels 1-5,26/02/2016,110238,"1,428.90",Revenue,UK Healthcare (BDHSC),17241
Chorley Borough Council,http://statistics.data.gov.uk/id/local-authority/30UE,Control Accounts,Control,HR & Org. Development,General Balances,100,Balance Sheet,Balance,Top ups,26/02/2016,110238,554.44,Revenue,UK Healthcare (BDHSC),17241
Chorley Borough Council,http://statistics.data.gov.uk/id/local-authority/30UE,Economic Development,1096,Economic Development,Conferences - Staff,40120,Expenses,5030,Exhibition space at the UKNP 2 day conference & exhibition on 25/26 Feb stand C140,19/02/2016,110081,"2,500.00",Revenue,UK Northern Powerhouse Ltd,74450
Chorley Borough Council,http://statistics.data.gov.uk/id/local-authority/30UE,Unapportionable Central OHeads,1009,"Customer, ICT & Transactional",Postages,40082,Communication and Computing,5028,Imail Eco Business mono Letters - Hybrid,18/02/2016,109970,866.06,Revenue,UKMAIL Ltd (Mail),57758
Chorley Borough Council,http://statistics.data.gov.uk/id/local-authority/30UE,Unapportionable Central OHeads,1009,"Customer, ICT & Transactional",Postages,40082,Communication and Computing,5028,Imail Eco Business mono Letters - Hybrid,18/02/2016,109977,619.51,Revenue,UKMAIL Ltd (Mail),57758
Chorley Borough Council,http://statistics.data.gov.uk/id/local-authority/30UE,Unapportionable Central OHeads,1009,"Customer, ICT & Transactional",Postages,40082,Communication and Computing,5028,Imail Eco Business mono Letters - Hybrid,18/02/2016,109978,634.27,Revenue,UKMAIL Ltd (Mail),57758
Chorley Borough Council,http://statistics.data.gov.uk/id/local-authority/30UE,Control Accounts,Control,Shared Service Arrangement,General Balances,100,Balance Sheet,Balance,salary ded 16,18/02/2016,110082,"1,942.40",Revenue,Unify Credit Union Ltd,55509
Chorley Borough Council,http://statistics.data.gov.uk/id/local-authority/30UE,Unapportionable Central OHeads,1009,"Customer, ICT & Transactional",Telephones - Maintenance,40233,Communication and Computing,5028,Contract number 44031628 maintenance for Hi Path Pro centre - 1 month in addition to PRD41009,18/02/2016,109981,345.17,Revenue,Unify Enterprise Communications,21179
Chorley Borough Council,http://statistics.data.gov.uk/id/local-authority/30UE,Unapportionable Central OHeads,1009,"Customer, ICT & Transactional",Telephones - Maintenance,40233,Communication and Computing,5028,Contract number 44031627 maintenance for Hi Path 4000 1 month in addition to PRD41009,18/02/2016,109981,517.17,Revenue,Unify Enterprise Communications,21179
Chorley Borough Council,http://statistics.data.gov.uk/id/local-authority/30UE,Unapportionable Central OHeads,1009,Governance,Water - Metered Supplies,20022,Water Services,5009,Byron Street,05/02/2016,109753,734.41,Revenue,United Utilities Water Plc,17926
Chorley Borough Council,http://statistics.data.gov.uk/id/local-authority/30UE,Corporate Management,1008,Governance,Water - Metered Supplies,20022,Water Services,5009,Toilets,05/02/2016,109755,"1,988.77",Revenue,United Utilities Water Plc,17926
Chorley Borough Council,http://statistics.data.gov.uk/id/local-authority/30UE,Democratic Represent and  Mgnt,1007,Governance,Water - Metered Supplies,20022,Water Services,5009,Astley coach house,05/02/2016,109833,764.54,Revenue,United Utilities Water Plc,17926
Chorley Borough Council,http://statistics.data.gov.uk/id/local-authority/30UE,Democratic Represent and  Mgnt,1007,Governance,Water - Metered Supplies,20022,Water Services,5009,Astley coach house,05/02/2016,109834,820.29,Revenue,United Utilities Water Plc,17926
Chorley Borough Council,http://statistics.data.gov.uk/id/local-authority/30UE,Corporate Management,1008,Streetscene & Leisure Contracts,Unitary Payment(S),50009,Private Contractors,5042,Provision of household waste and recycling collections and ancillary services for 2015/16,03/02/2016,108910,"273,087.19",Revenue,Veolia ES (UK) Ltd,20748
Chorley Borough Council,http://statistics.data.gov.uk/id/local-authority/30UE,Service Management & Support,1009,Streetscene & Leisure Contracts,Supplies-Grounds Maintenance,40025,"Equipment, Furniture & Materia",5023,Assistance with waste collection following Boxing Day flooding 28 Dec 2015 to 16 Jan 2016 inclusive,24/02/2016,109997,"23,744.45",Revenue,Veolia ES (UK) Ltd,20748
Chorley Borough Council,http://statistics.data.gov.uk/id/local-authority/30UE,Corporate Management,1008,Streetscene & Leisure Contracts,Unitary Payment(S),50009,Private Contractors,5042,Provision of household waste and recycling collections and ancillary services for 2015/16,24/02/2016,109998,"275,439.19",Revenue,Veolia ES (UK) Ltd,20748
Chorley Borough Council,http://statistics.data.gov.uk/id/local-authority/30UE,Business Support,1095,Economic Development,Grants To Other Organisations,40127,Grants and Subscriptions,5031,,18/02/2016,109893,455.00,Revenue,NAME REDACTED,65501
Chorley Borough Council,http://statistics.data.gov.uk/id/local-authority/30UE,Central Support Services,1009,"Customer, ICT & Transactional",Internet Charges,40104,Communication and Computing,5028,,24/02/2016,110137,"1,076.32",Revenue,Virgin Media Payments Ltd,17632
Chorley Borough Council,http://statistics.data.gov.uk/id/local-authority/30UE,Central Support Services,1009,"Customer, ICT & Transactional",Internet Charges,40104,Communication and Computing,5028,,24/02/2016,110215,"1,123.79",Revenue,Virgin Media Payments Ltd,17632
Chorley Borough Council,http://statistics.data.gov.uk/id/local-authority/30UE,Homelessness,1075,Housing,Grants To Other Organisations,40127,Grants and Subscriptions,5031,South Lancashire Single Homelessness Initiative grant distribution mainly from the Accommodation Finding Service budget,05/02/2016,109790,"11,650.00",Revenue,West Lancashire Borough Council,17810
Chorley Borough Council,http://statistics.data.gov.uk/id/local-authority/30UE,Business Support,1095,Economic Development,Grants To Other Organisations,40127,Grants and Subscriptions,5031,subsidy 7,26/02/2016,110239,851.50,Revenue,Wild Orchid,67522
Chorley Borough Council,http://statistics.data.gov.uk/id/local-authority/30UE,Service Management & Support,1009,Streetscene & Leisure Contracts,External Contractor,40198,Miscellaneous Expenses,5034,Carryout laser cutting and powder coating of Welcome to Chorley signs at 3 separate locations as per quotation No 37015,10/02/2016,109805,"1,155.28",Revenue,Wybone Ltd,18097
